{"text_format":"1","workbook":"xlsx","n_sheets":3,"sheets":["Job Submission Request","Lookup FIelds","Grade List"],"not_rendered":{"charts":0,"images":0,"macros":1,"external_links":0,"defined_names":46,"comments":0,"pivot_tables":0},"unopened":[],"bounds":{"document_bytes":16777216,"sheet_cells":100000,"rows_first":2000,"rows_last":500,"rows_between":2000,"halvings":0,"cell_chars":16384,"cell_head_chars":4096},"cells_cut":0,"cells_raw":0,"read":"whole","date_system":"1900"}

{"sheet":"Job Submission Request","index":0,"n_rows":21,"n_cols":4,"rows_kept":21,"cut":false,"hidden":false,"merged":[[0,0,0,1]]}
["HSE Job Advert Template (Version 9.0)"]
["Go Live Date*"]
["Important Information","The content of this field will auto-populate when an 'Advertisement Source' is selected."]
["Campaign Reference Number*"]
["Job Title *"]
["Staff Category*"]
["Medical & Dental Sub Category*"]
["Please Insert Grade Code*"]
["Advertisement Source*                 "]
["Recruitment Organisations*               ",null,null,{"$f":"IF(AND(OR(B9=\"HSE\",B9=\"TUSLA\"),B10<>\"\"),1,0)","v":0}]
["Health Region*"]
["County*                                               "]
["Location*                                                "]
["Closing date and time of Campaign*"]
["Contract Type*"]
["Internal or External?*"]
["Proposed Interview Date"]
["Please enter post specific information here."]
["Please enter contact details for informal enquiries here. This should include Name, Email address, Job Title and Contact Phone Number\n\n"]
["Please enter the web link to the application here (if Applicable):"]
["Application Details (if Applicable): Please include Named Person, Department Name, E-mail Address and Telephone Number \n"]

{"sheet":"Lookup FIelds","index":1,"n_rows":162,"n_cols":70,"rows_kept":162,"cut":false,"hidden":true,"merged":[[0,18,0,23]]}
["StaffCat",null,"Yes/No",null,"Counties",null,"Contr_Type",null,"Int_Ext",null,"HSE_Areas",null,null,null,"Live/Closing Date",null,null,null,"Medical Dental options",null,null,null,null,null,null,null,null,null,"Regional Health Authorities",null,null,null,null,null,null,null,null,null,null,null,null,null,null,null,null,null,null,null,null,null,null,"CHO1","CHO9","CHO8","CHO2","CHO4","CHO7","CHO6","CHO3","CHO5","RCSI Hospital Group "]
["General Support",null,"Yes",null,"All",null,"Permanent Part-Time",null,"Internal",null,"National","National",null,null,{"$f":"TODAY()","v":"2025-03-26"},"Live",null,null,"General Support","Health & Social Care Professionals","Management & Administrative","Medical & Dental","Nursing & Midwifery","Patient & Client Care",null,null,null,null,"National",null,null,"Who is Recruiting?",null,null,null,"HSE",null,null,"Section 38",null,"Section 39",null,null,null,"National","HSE Dublin and Midlands: Longford, Westmeath, Offaly, Laois, Kildare, and parts of Dublin South and Wicklow","HSE Dublin and North East: North Dublin, Meath, Louth, Cavan, and Monaghan","HSE Dublin and South East: Tipperary South, Waterford, Kilkenny, Carlow, Wexford, Wicklow, part of South Dublin","HSE Mid West: Limerick, Tipperary and Clare","HSE South West: Kerry and Cork","HSE West and North West: Donegal, Sligo, Leitrim, Roscommon, Mayo, and Galway","Community Healthcare Cavan, Donegal, Leitrim, Monaghan , Sligo","Community Healthcare Organisation Dublin North City and County","Community Healthcare Organisation Midlands Louth Meath","Community Healthcare West","Cork Kerry Community Healthcare","Dublin South, Kildare and West Wicklow Community Healthcare Organisation","HSE Community Healthcare East","Mid West Community Healthcare","South East Community Healthcare","RCSI Hospital Group ","Saolta University Hospital Group ","Dublin Midlands Hospital Group ","Ireland East Hospital Group ","University of Limerick Hospitals Group ","South/South West Hospitals Group ","Children's Health Ireland ","Corporate","Other Agencies","Tusla Child and Family Agency "]
["Health & Social Care Professionals",null,"No",null,"Carlow",null,"Permanent Wholetime",null,"External",null,"HSE Dublin and North East","HSE Dublin and North East",null,null,{"$f":"TODAY()+60","v":"2025-05-25"},"Max live",null,null,"Not Applicable","Not Applicable","Not Applicable","Consultant","Not Applicable","Not Applicable",null,null,null,null,"HSE Dublin and North East: North Dublin, Meath, Louth, Cavan, and Monaghan",null,null,"Recruit",null,null,null,"Recr_HSE",null,null,"Recr_38",null,"Recr_39",null,null,null,"All_loc","RHA_5","RHA_6","RHA_4","RHA_2","RHA_3","RHA_1","CHO_1","CHO_9","CHO_8","CHO_2","CHO_4","CHO_7","CHO_6","CHO_3","CHO_5","HG_RCSI","HG_Saolta","HG_DM","HG_IE","HG_UL","HG_SSW","HG_CHI","All_loc","All_loc","All_loc"]
["Management & Administrative",null,null,null,"Cavan",null,"Specified Purpose Part-Time",null,"Secondment",null,"HSE Dublin and Midlands","HSE Dublin and Midlands",null,null,{"$f":"'Job Submission Request'!B2+2","v":"1900-01-02"},"Min Closing",null,null,null,null,null,"Dental",null,null,null,null,null,null,"HSE Dublin and Midlands: Longford, Westmeath, Offaly, Laois, Kildare, and part Dublin South West and Wicklow",null,null,"HSE","Recr_HSE",null,null,"National","All_All",1,"Other Section 38","All_loc","Other Section 39","All_loc",null,null,"All","Dublin South","Cavan","Carlow","Limerick/Clare/Tipperary North","Cork","Donegal","Cavan","Dublin North Central/Dublin North/Dublin North West","Laois","Galway","Cork","Dublin South","Dublin South East","Limerick/Clare/Tipperary North","Carlow","Cavan","Donegal","Dublin","Dublin","Limerick","Cork","Dublin","All","All","All"]
["Medical & Dental",null,null,null,"Clare",null,"Specified Purpose Wholetime",null,"Expression of Interest",null,"HSE Dublin and South East","HSE Dublin and South East",null,null,{"$f":"TODAY()+450","v":"2026-06-19"},"Max Closing",null,null,null,null,null,"General Practitioner",null,null,null,null,null,null,"HSE Dublin and South East: Tipperary South, Waterford, Kilkenny, Carlow, Wexford, Wicklow, South East Dublin",null,null,"Section 38","Recr_38",null,null,"HSE Dublin and North East","RHA_6",2,"Adelaide & Meath Hospital Dublin incorporating the National CHildrens Hospital","All_loc","Ability West","All_loc",null,null,"Carlow","Kildare","Dublin North","Dublin South","Clare","Kerry","Galway","Donegal","Dublin North","Longford","Mayo","Kerry","Dublin South West","Wicklow","Clare","Kilkenny","Dublin","Galway","Kildare","Kilkenny",null,"Kerry",null,"Carlow","Carlow","Carlow"]
["Nursing & Midwifery",null,null,null,"Cork",null,"Fixed Term Part-Time",null,null,null,"HSE Mid West","HSE Mid West",null,null,null,null,null,null,null,null,null,"Interns",null,null,null,null,null,null,"HSE Mid West: Limerick, Tipperary and Clare",null,null,"Section 39","Recr_39",null,null,"HSE Dublin and Midlands","RHA_5",3,"Aurora (Saint Patricks Centre Kilkenny)","All_loc","Acquired Brain Injury, ABI Ireland","All_loc",null,null,"Cavan","Laois","Louth","Kilkenny","Limerick",null,"Leitrim","Leitrim",null,"Louth","Roscommon",null,"Kildare",null,"Limerick","Tipperary South","Louth","Roscommon","Laois","Tipperary",null,null,null,"Cavan","Cavan","Cavan"]
["Patient & Client Care",null,null,null,"Donegal",null,"Fixed Term Wholetime",null,null,null,"HSE South West","HSE South West",null,null,null,null,null,null,null,null,null,"SHO & Registrar",null,null,null,null,null,null,"HSE South West: Kerry and Cork",null,null,"TUSLA","TUSLA",null,null,"HSE Dublin and South East","RHA_4",4,"Avista Company Limited By Guarantee ","All_loc","Ard Aoibhinn Center Company Limited by Guarantee","All_loc",null,null,"Clare","Longford","Meath","Tipperary South","Tipperary North",null,"Mayo","Monaghan",null,"Meath",null,null,"West Wicklow",null,"Tipperary North","Waterford","Meath","Sligo","Offaly","Waterford",null,null,null,"Clare","Clare","Clare"]
[null,null,null,null,"Dublin",null,"If and When",null,null,null,"HSE West and North West","HSE West and North West",null,null,null,null,null,null,null,null,null,"Other",null,null,null,null,null,null,"HSE West and North West: Donegal, Sligo, Leitrim, Roscommon, Mayo, and Galway",null,null,null,null,null,null,"HSE Mid West","RHA_2",5,"Beaumont Hospital","All_loc","Autism Initiatives Ireland Company Limited by Guarantee","All_loc",null,null,"Cork","Offaly","Monaghan","Waterford",null,null,"Roscommon","Sligo",null,"Offaly",null,null,null,null,null,"Wexford","Monaghan",null,"Westmeath","Wexford",null,null,null,"Cork","Cork","Cork"]
[null,null,null,null,"Dublin North",null,null,null,null,null,"Children's Health Ireland ","Children's Health Ireland ",null,null,"Who is Recruiting?",null,null,null,null,null,null,null,null,null,null,null,null,null,null,null,null,null,null,null,null,"HSE South West","RHA_3",6,"Brothers of Charity Services Ireland","All_loc","BEAM (Barrow Valley Enterprise for Adult Members with Special Needs Company Limited by Guarantee)","All_loc",null,null,"Donegal","Westmeath",null,"Wexford",null,null,"Sligo",null,null,"Westmeath",null,null,null,null,null,null,null,null,null,null,null,null,null,"Donegal","Donegal","Donegal"]
[null,null,null,null,"Dublin South",null,null,null,null,null,"Corporate","Corporate",null,null,"Recruit",null,null,null,null,null,null,null,null,null,null,null,null,null,null,null,null,null,null,null,null,"HSE West and North West","RHA_1",7,"Cappagh National Orthopaedic Hospital Designated activity compant","All_loc","Cairdeas Centre Company Limited By Guarantee","All_loc",null,null,"Dublin","Wicklow",null,"Wicklow",null,null,"West Cavan",null,null,null,null,null,null,null,null,null,null,null,null,null,null,null,null,"Dublin","Dublin","Dublin"]
[null,null,null,null,"Galway",null,null,null,null,null,"Other Agencies","Other Agencies",null,null,"HSE",null,null,null,null,null,null,null,null,null,null,null,null,null,null,null,null,null,null,null,null,"Children's Health Ireland ","All_loc",8,"Carriglea Cairde Services","All_loc","Camphill Communities of Ireland","All_loc",null,null,"Dublin North",null,null,null,null,null,null,null,null,null,null,null,null,null,null,null,null,null,null,null,null,null,null,"Dublin North","Dublin North","Dublin North"]
[null,null,null,null,"Kerry",null,null,null,null,null,null,null,null,null,"Section 38",null,null,null,"Other","Other","Other","MedDent","Other","Other",null,null,null,null,null,null,null,null,null,null,null,"Corporate","All_loc",9,"Central Remedial Clini","All_loc","Childvision","All_loc",null,null,"Dublin South",null,null,null,null,null,null,null,null,null,null,null,null,null,null,null,null,null,null,null,null,null,null,"Dublin South","Dublin South","Dublin South"]
[null,null,null,null,"Kildare",null,null,null,null,null,null,null,null,null,"Section 39",null,null,null,"General Support","Health & Social Care Professionals","Management & Administrative","Medical & Dental","Nursing & Midwifery","Patient & Client Care",null,null,null,null,null,null,null,null,null,null,null,"Other Agencies","All_loc",10,"Cheerverstown House Company Limited by Guarantee","All_loc","Clann Mor Residential & Respite Company Limited by Guarantee","All_loc",null,null,"Galway",null,null,null,null,null,null,null,null,null,null,null,null,null,null,null,null,null,null,null,null,null,null,"Galway","Galway","Galway"]
[null,null,null,null,"Kilkenny",null,null,null,null,null,null,null,null,null,"Partner",null,null,null,"Not Applicable","Not Applicable","Not Applicable","Consultant","Not Applicable","Not Applicable",null,null,null,null,null,null,null,null,null,null,null,null,null,11,"Children's Sunshine Home (LauraLynn)","All_loc","Co Wexford Community Workshop (New Ross) Company Limited by Guarantee","All_loc",null,null,"Kerry",null,null,null,null,null,null,null,null,null,null,null,null,null,null,null,null,null,null,null,null,null,null,"Kerry","Kerry","Kerry"]
["General Support",null,null,null,"Laois",null,null,null,null,null,null,null,null,null,"Other",null,null,null,null,null,null,"Dental",null,null,null,null,null,null,null,null,null,null,null,null,null,null,null,12,"Childrens University Hospital","All_loc","Co. Wexford Community Workshop (Enniscorthy) Company Limited by Guarantee","All_loc",null,null,"Kildare",null,"All_all",null,null,null,null,null,null,null,null,null,null,null,null,null,null,null,null,null,null,null,null,"Kildare","Kildare","Kildare"]
["Nursing & Midwifery",null,null,null,"Leitrim",null,null,null,null,null,null,null,null,null,null,null,null,null,null,null,null,"General Practitioner",null,null,null,null,null,null,null,null,null,null,null,null,null,null,null,13,"Coombe Lying-in Hospital","All_loc","CoAction West Cork Company Limited by Guarantee","All_loc",null,null,"Kilkenny",null,"All",null,null,null,null,null,null,null,null,null,null,null,null,null,null,null,null,null,null,null,null,"Kilkenny","Kilkenny","Kilkenny"]
["Health & Social care Professionals",null,null,null,"Limerick",null,null,null,null,null,null,null,null,null,null,null,null,null,null,null,null,"Interns",null,null,null,null,null,null,null,null,null,null,null,null,null,null,null,14,"Cope Foundation","All_loc","Dara Community Living ","All_loc",null,null,"Laois",null,null,null,null,null,null,null,null,null,null,null,null,null,null,null,null,null,null,null,null,null,null,"Laois","Laois","Laois"]
["Medical & Dental",null,null,null,"Longford",null,null,null,null,null,null,null,null,null,null,null,null,null,null,null,null,"SHO & Registrar",null,null,null,null,null,null,null,null,null,null,null,null,null,null,null,15,"Cork Dental School & Hospital","All_loc","Delta Centre Company Limited by Guarantee","All_loc",null,null,"Leitrim",null,null,null,null,null,null,null,null,null,null,null,null,null,null,null,null,null,null,null,null,null,null,"Leitrim","Leitrim","Leitrim"]
["Patient & Client Care",null,null,null,"Louth",null,null,null,null,null,null,null,null,null,null,null,null,null,null,null,null,"Other",null,null,null,null,null,null,null,null,null,null,null,null,null,null,null,16,"Dublin Dental Hospital","All_loc","Drumlin House Training Centre Company Limited by Guarantee","All_loc",null,null,"Limerick",null,null,null,null,null,null,null,null,null,null,null,null,null,null,null,null,null,null,null,null,null,null,"Limerick","Limerick","Limerick"]
["Management & Administrative",null,null,null,"Mayo",null,null,null,null,null,null,null,null,null,null,null,null,null,"CatLookup",null,null,null,null,null,null,null,null,null,null,null,null,null,null,null,null,null,null,17,"Incorporated Orthopaedic Hospital of Ireland","All_loc","Enable Ireland Disability Services","All_loc",null,null,"Longford",null,null,null,null,null,null,null,null,null,null,null,null,null,null,null,null,null,null,null,null,null,null,"Longford","Longford","Longford"]
[null,null,null,null,"Meath",null,null,null,null,null,null,null,null,null,null,null,null,null,"Categories",null,null,null,null,null,null,null,null,null,null,null,null,null,null,null,null,null,null,18,"KARE, Promotion inclusion of People with Intellectual Disabilities","All_loc","Family Carers Ireland","All_loc",null,null,"Louth",null,null,null,null,null,null,null,null,null,null,null,null,null,null,null,null,null,null,null,null,null,null,"Louth","Louth","Louth"]
[null,null,null,null,"Monaghan",null,null,null,null,null,null,null,null,null,null,null,null,null,"General Support","Other",null,null,null,null,null,null,null,null,null,null,null,null,null,null,null,null,null,19,"Mater Misericordiae University Hospital","All_loc","Gheel Autism Services Company Limited by Guarantee","All_loc",null,null,"Mayo",null,null,null,null,null,null,null,null,null,null,null,null,null,null,null,null,null,null,null,null,null,null,"Mayo","Mayo","Mayo"]
[null,null,null,null,"Offaly",null,null,null,null,null,null,null,null,null,null,null,null,null,"Health & Social Care Professionals","Other",null,null,null,null,null,null,null,null,null,null,null,null,null,null,null,null,null,20,"Mercy University Hospital Cork company limited by Guarantee","All_loc","Headway Ireland","All_loc",null,null,"Meath",null,null,null,null,null,null,null,null,null,null,null,null,null,null,null,null,null,null,null,null,null,null,"Meath","Meath","Meath"]
[null,null,null,null,"Roscommon",null,null,null,null,null,null,null,null,null,null,null,null,null,"Management & Administrative","Other",null,null,null,null,null,null,null,null,null,null,null,null,null,null,null,null,null,21,"Muirosa Foundation","All_loc","Holy Angels Day Care Centre Company Limited by Guarantee","All_loc",null,null,"Monaghan",null,null,null,null,null,null,null,null,null,null,null,null,null,null,null,null,null,null,null,null,null,null,"Monaghan","Monaghan","Monaghan"]
[null,null,null,null,"Sligo",null,null,null,null,null,null,null,null,null,null,null,null,null,"Medical & Dental","MedDent",null,null,null,null,null,null,null,null,null,null,null,null,null,null,null,null,null,22,"National Maternity Hospital","All_loc","I.W.A. Company Limited by Guarantee","All_loc",null,null,"Offaly",null,null,null,null,null,null,null,null,null,null,null,null,null,null,null,null,null,null,null,null,null,null,"Offaly","Offaly","Offaly"]
[null,null,null,null,"Tipperary",null,null,null,null,null,null,null,null,null,null,null,null,null,"Nursing & Midwifery","Other",null,null,null,null,null,null,null,null,null,null,null,null,null,null,null,null,null,23,"National Rehabilitation hospital","All_loc","Inspired (AK Inspired Ability)","All_loc",null,null,"Roscommon",null,null,null,null,null,null,null,null,null,null,null,null,null,null,null,null,null,null,null,null,null,null,"Roscommon","Roscommon","Roscommon"]
[null,null,null,null,"Tipperary (North)",null,null,null,null,null,null,null,null,null,null,null,null,null,"Patient & Client Care","Other",null,null,null,null,null,null,null,null,null,null,null,null,null,null,null,null,null,24,"Our Lady's childrens Hospital, Crumlin","All_loc","Kerry Parents and Friends Association","All_loc",null,null,"Sligo",null,null,null,null,null,null,null,null,null,null,null,null,null,null,null,null,null,null,null,null,null,null,"Sligo","Sligo","Sligo"]
[null,null,null,null,"Tipperary (South)",null,null,null,null,null,null,null,null,null,null,null,null,null,null,null,null,null,null,null,null,null,null,null,null,null,null,null,null,"Is this still relevant",null,null,null,25,"Our Lady's Hospice & Care Services","All_loc","L'Arche Ireland","All_loc",null,null,"Tipperary",null,null,null,null,null,null,null,null,null,null,null,null,null,null,null,null,null,null,null,null,null,null,"Tipperary","Tipperary","Tipperary"]
[null,null,null,null,"Waterford",null,null,null,null,null,null,null,null,null,null,null,null,null,null,null,null,null,null,null,null,null,null,null,null,null,null,null,null,null,null,null,null,26,"Peamount Healthcare","All_loc","Moorehaven Centre (Tipperary) Designated Activity Company","All_loc",null,null,"Tipperary (North)",null,null,null,null,null,null,null,null,null,null,null,null,null,null,null,null,null,null,null,null,null,null,"Tipperary (North)","Tipperary (North)","Tipperary (North)"]
[null,null,null,null,"Westmeath",null,null,null,null,null,null,null,null,null,null,null,null,null,null,null,null,null,null,null,null,null,null,null,null,null,null,null,null,null,null,null,null,27,"Rotunda Hospital","All_loc","Multiple Sclerosis, MS Ireland, The Multiple Sclerosis Society of Ireland","All_loc",null,null,"Tipperary (South)",null,null,null,null,null,null,null,null,null,null,null,null,null,null,null,null,null,null,null,null,null,null,"Tipperary (South)","Tipperary (South)","Tipperary (South)"]
[null,null,null,null,"Wexford",null,null,null,null,null,null,null,null,null,null,null,null,null,null,null,null,null,null,null,null,null,null,null,null,null,null,null,null,null,null,null,null,28,"Royal Hospital Donnybrook","All_loc","Order of Malta Regional Services Drogheda Company Limited by Guarantee","All_loc",null,null,"Waterford",null,null,null,null,null,null,null,null,null,null,null,null,null,null,null,null,null,null,null,null,null,null,"Waterford","Waterford","Waterford"]
[null,null,null,null,"Wicklow",null,null,null,null,null,null,null,null,null,null,null,null,null,null,null,null,null,null,null,null,null,null,null,null,null,null,null,null,null,null,"tusla",null,29,"Royal Victoria Eye and Ear Hospital","All_loc","Peacehave Trust Company Limited by Guarantee","All_loc",null,null,"West Cavan",null,null,null,null,null,null,null,null,null,null,null,null,null,null,null,null,null,null,null,null,null,null,"Westmeath","Westmeath","Westmeath"]
[null,null,null,null,"Cross Border",null,null,null,null,null,null,null,null,null,null,null,null,null,null,null,null,null,null,null,null,null,null,null,null,null,null,null,null,null,null,"Tusla Child and Family Agency",null,30,"Saint Michaels Hospital - Dun Laoighre","All_loc","Positive Futures: Achieving Dreams. Transforming Lives Company Limited By Guarantee","All_loc",null,null,"Westmeath",null,null,null,null,null,null,null,null,null,null,null,null,null,null,null,null,null,null,null,null,null,null,"Wexford","Wexford","Wexford"]
[null,null,null,null,null,null,null,null,null,null,null,null,null,null,null,null,null,null,null,null,null,null,null,null,null,null,null,null,null,null,null,null,null,null,null,null,null,31,"South Infirmary Victoria university Hospital","All_loc","PRAXIS CARE","All_loc",null,null,"Wexford",null,null,null,null,null,null,null,null,null,null,null,null,null,null,null,null,null,null,null,null,null,null,"Wicklow","Wicklow","Wicklow"]
[null,null,null,null,null,null,null,null,null,null,null,null,null,null,null,null,null,null,null,null,null,null,null,null,null,null,null,null,null,null,null,null,null,null,null,null,null,32,"St. James's Hospital","All_loc","Prosper Fingal Company Limited by Guarantee","All_loc",null,null,"Wicklow",null,null,null,null,null,null,null,null,null,null,null,null,null,null,null,null,null,null,null,null,null,null,"Cross Border","Cross Border","Cross Border"]
[null,null,null,null,null,null,null,null,null,null,null,null,null,null,null,null,null,null,null,null,null,null,null,null,null,null,null,null,null,null,null,null,null,null,null,null,null,33,"St. John of God Community Services Company Limited by Guarantee","All_loc","Prosper Meath Company Limited by Guarantee","All_loc",null,null,"Cross Border"]
[null,null,null,null,null,null,null,null,null,null,null,null,null,null,null,null,null,null,null,null,null,null,null,null,null,null,null,null,null,null,null,null,null,null,null,null,null,34,"St. Johns Hospital","All_loc","Reach Deaf Services","All_loc"]
[null,null,null,null,null,null,null,null,null,null,null,null,null,null,null,null,null,null,null,null,null,null,null,null,null,null,null,null,null,null,null,null,null,null,null,null,null,35,"St. Michaels House","All_loc","S O S Kilkenny Company Limited by Guarantee","All_loc"]
[null,null,null,null,null,null,null,null,null,null,null,null,null,null,null,null,null,null,null,null,null,null,null,null,null,null,null,null,null,null,null,null,null,null,null,null,null,36,"St. Vincent's Healthcare group","All_loc","St Catherines Association Company Limited by Guarantee","All_loc"]
[null,null,null,null,null,null,null,null,null,null,null,null,null,null,null,null,null,null,null,null,null,null,null,null,null,null,null,null,null,null,null,null,null,null,null,null,null,37,"St. Vincent's Hospital Fairview","All_loc","St. Aidan's Services Company Limited by Guarantee","All_loc"]
[null,null,null,null,null,null,null,null,null,null,null,null,null,null,null,null,null,null,null,null,null,null,null,null,null,null,null,null,null,null,null,null,null,null,null,null,null,38,"Stewarts Care Limited","All_loc","St. Christopher's Services Company Limited by Guarantee","All_loc"]
[null,null,null,null,null,null,null,null,null,null,null,null,null,null,null,null,null,null,null,null,null,null,null,null,null,null,null,null,null,null,null,null,null,null,null,null,null,39,"Sunbeam House Services company limited by Guarantee","All_loc","St. Cronans Association Company Limited by Guarantee","All_loc"]
[null,null,null,null,null,null,null,null,null,null,null,null,null,null,null,null,null,null,null,null,null,null,null,null,null,null,null,null,null,null,null,null,null,null,null,null,null,null,null,null,"St. Gabriel's Foundation","All_loc"]
[null,null,null,null,null,null,null,null,null,null,null,null,null,null,null,null,null,null,null,null,null,null,null,null,null,null,null,null,null,null,null,null,null,null,null,"All_locations",null,null,null,null,"St. Hilda's Services","All_loc"]
["HSE Dublin and Midlands: Longford, Westmeath, Offaly, Laois, Kildare, and parts of Dublin South and Wicklow",null,null,null,null,null,null,null,null,null,null,null,null,null,null,null,null,null,null,null,null,null,null,null,null,null,null,null,null,null,null,null,null,null,null,{"$f":"AJ4","v":"National"},"All_loc",null,null,null,"St. Joseph's Foundation","All_loc"]
["HSE Dublin and North East: North Dublin, Meath, Louth, Cavan, and Monaghan",null,null,null,null,null,null,null,null,null,null,null,null,null,null,null,null,null,null,null,null,null,null,null,null,null,null,null,null,null,null,null,null,null,null,{"$f":"AJ5","v":"HSE Dublin and North East"},"RHA_6",null,"Daughters of Charity disability support services company limited by Guarantee","OUT","St. Margaret’s Centre IRL-IASD Company Limited By Guarantee","All_loc"]
["HSE Dublin and South East: Tipperary South, Waterford, Kilkenny, Carlow, Wexford, Wicklow, part of South Dublin",null,null,null,null,null,null,null,null,null,null,null,null,null,null,null,null,null,null,null,null,null,null,null,null,null,null,null,null,null,null,null,null,null,null,{"$f":"AJ6","v":"HSE Dublin and Midlands"},"RHA_5",null,null,null,"The Anne Sullivan Centre","All_loc"]
["HSE Mid West: Limerick, Tipperary and Clare",null,null,null,null,null,null,null,null,null,null,null,null,null,null,null,null,null,null,null,null,null,null,null,null,null,null,null,null,null,null,null,null,null,null,{"$f":"AJ7","v":"HSE Dublin and South East"},"RHA_4",null,null,null,"The Cheshire Foundation in Ireland","All_loc"]
["HSE South West: Kerry and Cork",null,null,null,null,null,null,null,null,null,null,null,null,null,null,null,null,null,null,null,null,null,null,null,null,null,null,null,null,null,null,null,null,null,null,{"$f":"AJ8","v":"HSE Mid West"},"RHA_2",null,null,null,"The Rehab Group","All_loc"]
["HSE West and North West: Donegal, Sligo, Leitrim, Roscommon, Mayo, and Galway",null,null,null,null,null,null,null,null,null,null,null,null,null,null,null,null,null,null,null,null,null,null,null,null,null,null,null,null,null,null,null,null,null,null,{"$f":"AJ9","v":"HSE South West"},"RHA_3",null,null,null,"Vision Ireland (NCBI)","All_loc"]
[null,null,null,null,null,null,null,null,null,null,null,null,null,null,null,null,null,null,null,null,null,null,null,null,null,null,null,null,null,null,null,null,null,null,null,{"$f":"AJ10","v":"HSE West and North West"},"RHA_1",null,null,null,"WALK Company Limited by Guarantee","All_loc"]
[null,null,null,null,null,null,null,null,null,null,null,null,null,null,null,null,null,null,null,null,null,null,null,null,null,null,null,null,null,null,null,null,null,null,null,{"$f":"AJ11","v":"Children's Health Ireland "},"All_loc",null,null,null,"Waterford Intellectual Disability Association Company Limited by Guarantee","All_loc"]
[null,null,null,null,null,null,null,null,null,null,null,null,null,null,null,null,null,null,null,null,null,null,null,null,null,null,null,null,null,null,null,null,null,null,null,{"$f":"AJ12","v":"Corporate"},"All_loc",null,null,null,"Western Care Association","All_loc"]
[null,null,null,null,null,null,null,null,null,null,null,null,null,null,null,null,null,null,null,null,null,null,null,null,null,null,null,null,null,null,null,null,null,null,null,{"$f":"AJ13","v":"Other Agencies"},"All_loc",null,null,null,"Windmill Therapeutic (Training) Unit Company Limited by Guarantee","All_loc"]
[null,null,null,null,null,null,null,null,null,null,null,null,null,null,null,null,null,null,null,null,null,null,null,null,null,null,null,null,null,null,null,null,null,null,null,{"$f":"AJ14","v":0},0,null,null,null,null,"All_loc"]
[null,null,null,null,null,null,null,null,null,null,null,null,null,null,null,null,null,null,null,null,null,null,null,null,null,null,null,null,null,null,null,null,null,null,null,{"$f":"AJ15","v":0},0,null,null,null,null,"All_loc"]
[null,null,null,null,null,null,null,null,null,null,null,null,null,null,null,null,null,null,null,null,null,null,null,null,null,null,null,null,null,null,null,null,null,null,null,{"$f":"AJ16","v":0},0]
[null,null,null,null,null,null,null,null,null,null,null,null,null,null,null,null,null,null,null,null,null,null,null,null,null,null,null,null,null,null,null,null,null,null,null,{"$f":"AJ17","v":0},0]
[null,null,null,null,null,null,null,null,null,null,null,null,null,null,null,null,null,null,null,null,null,null,null,null,null,null,null,null,null,null,null,null,null,null,null,{"$f":"AJ18","v":0},0]
[null,null,null,null,null,null,null,null,null,null,null,null,null,null,null,null,null,null,null,null,null,null,null,null,null,null,null,null,null,null,null,null,null,null,null,{"$f":"AJ19","v":0},0]
[null,null,null,null,null,null,null,null,null,null,null,null,null,null,null,null,null,null,null,null,null,null,null,null,null,null,null,null,null,null,null,null,null,null,null,{"$f":"AJ20","v":0},0]
[null,null,null,null,null,null,null,null,null,null,null,null,null,null,null,null,null,null,null,null,null,null,null,null,null,null,null,null,null,null,null,null,null,null,null,{"$f":"AJ21","v":0},0]
[null,null,null,null,null,null,null,null,null,null,null,null,null,null,null,null,null,null,null,null,null,null,null,null,null,null,null,null,null,null,null,null,null,null,null,{"$f":"AJ22","v":0},0]
[null,null,null,null,null,null,null,null,null,null,null,null,null,null,null,null,null,null,null,null,null,null,null,null,null,null,null,null,null,null,null,null,null,null,null,{"$f":"AJ23","v":0},0]
[null,null,null,null,null,null,null,null,null,null,null,null,null,null,null,null,null,null,null,null,null,null,null,null,null,null,null,null,null,null,null,null,null,null,null,{"$f":"AJ24","v":0},0]
[null,null,null,null,null,null,null,null,null,null,null,null,null,null,null,null,null,null,null,null,null,null,null,null,null,null,null,null,null,null,null,null,null,null,null,{"$f":"AJ25","v":0},0]
[null,null,null,null,null,null,null,null,null,null,null,null,null,null,null,null,null,null,null,null,null,null,null,null,null,null,null,null,null,null,null,null,null,null,null,{"$f":"AJ26","v":0},0]
[null,null,null,null,null,null,null,null,null,null,null,null,null,null,null,null,null,null,null,null,null,null,null,null,null,null,null,null,null,null,null,null,null,null,null,{"$f":"AJ27","v":0},0]
[null,null,null,null,null,null,null,null,null,null,null,null,null,null,null,null,null,null,null,null,null,null,null,null,null,null,null,null,null,null,null,null,null,null,null,{"$f":"AJ28","v":0},0]
[null,null,null,null,null,null,null,null,null,null,null,null,null,null,null,null,null,null,null,null,null,null,null,null,null,null,null,null,null,null,null,null,null,null,null,{"$f":"tusla","v":"Tusla Child and Family Agency"},{"$f":"AK29","v":0}]
[null,null,null,null,null,null,null,null,null,null,null,null,null,null,null,null,null,null,null,null,null,null,null,null,null,null,null,null,null,null,null,null,null,null,"S38",{"$f":"AM4","v":"Other Section 38"},{"$f":"AN4","v":"All_loc"}]
[null,null,null,null,null,null,null,null,null,null,null,null,null,null,null,null,null,null,null,null,null,null,null,null,null,null,null,null,null,null,null,null,null,null,"S38",{"$f":"AM5","v":"Adelaide & Meath Hospital Dublin incorporating the National CHildrens Hospital"},"All_loc"]
[null,null,null,null,null,null,null,null,null,null,null,null,null,null,null,null,null,null,null,null,null,null,null,null,null,null,null,null,null,null,null,null,null,null,"S38",{"$f":"AM6","v":"Aurora (Saint Patricks Centre Kilkenny)"},"All_loc"]
[null,null,null,null,null,null,null,null,null,null,null,null,null,null,null,null,null,null,null,null,null,null,null,null,null,null,null,null,null,null,null,null,null,null,"S38",{"$f":"AM7","v":"Avista Company Limited By Guarantee "},"All_loc"]
[null,null,null,null,null,null,null,null,null,null,null,null,null,null,null,null,null,null,null,null,null,null,null,null,null,null,null,null,null,null,null,null,null,null,"S38",{"$f":"AM8","v":"Beaumont Hospital"},"All_loc"]
[null,null,null,null,null,null,null,null,null,null,null,null,null,null,null,null,null,null,null,null,null,null,null,null,null,null,null,null,null,null,null,null,null,null,"S38",{"$f":"AM9","v":"Brothers of Charity Services Ireland"},"All_loc"]
[null,null,null,null,null,null,null,null,null,null,null,null,null,null,null,null,null,null,null,null,null,null,null,null,null,null,null,null,null,null,null,null,null,null,"S38",{"$f":"AM10","v":"Cappagh National Orthopaedic Hospital Designated activity compant"},"All_loc"]
[null,null,null,null,null,null,null,null,null,null,null,null,null,null,null,null,null,null,null,null,null,null,null,null,null,null,null,null,null,null,null,null,null,null,"S38",{"$f":"AM11","v":"Carriglea Cairde Services"},"All_loc"]
[null,null,null,null,null,null,null,null,null,null,null,null,null,null,null,null,null,null,null,null,null,null,null,null,null,null,null,null,null,null,null,null,null,null,"S38",{"$f":"AM12","v":"Central Remedial Clini"},"All_loc"]
[null,null,null,null,null,null,null,null,null,null,null,null,null,null,null,null,null,null,null,null,null,null,null,null,null,null,null,null,null,null,null,null,null,null,"S38",{"$f":"AM13","v":"Cheerverstown House Company Limited by Guarantee"},"All_loc"]
[null,null,null,null,null,null,null,null,null,null,null,null,null,null,null,null,null,null,null,null,null,null,null,null,null,null,null,null,null,null,null,null,null,null,"S38",{"$f":"AM14","v":"Children's Sunshine Home (LauraLynn)"},"All_loc"]
[null,null,null,null,null,null,null,null,null,null,null,null,null,null,null,null,null,null,null,null,null,null,null,null,null,null,null,null,null,null,null,null,null,null,"S38",{"$f":"AM15","v":"Childrens University Hospital"},"All_loc"]
[null,null,null,null,null,null,null,null,null,null,null,null,null,null,null,null,null,null,null,null,null,null,null,null,null,null,null,null,null,null,null,null,null,null,"S38",{"$f":"AM16","v":"Coombe Lying-in Hospital"},"All_loc"]
[null,null,null,null,null,null,null,null,null,null,null,null,null,null,null,null,null,null,null,null,null,null,null,null,null,null,null,null,null,null,null,null,null,null,"S38",{"$f":"AM17","v":"Cope Foundation"},"All_loc"]
[null,null,null,null,null,null,null,null,null,null,null,null,null,null,null,null,null,null,null,null,null,null,null,null,null,null,null,null,null,null,null,null,null,null,"S38",{"$f":"AM18","v":"Cork Dental School & Hospital"},"All_loc"]
[null,null,null,null,null,null,null,null,null,null,null,null,null,null,null,null,null,null,null,null,null,null,null,null,null,null,null,null,null,null,null,null,null,null,"S38",{"$f":"AM19","v":"Dublin Dental Hospital"},"All_loc"]
[null,null,null,null,null,null,null,null,null,null,null,null,null,null,null,null,null,null,null,null,null,null,null,null,null,null,null,null,null,null,null,null,null,null,"S38",{"$f":"AM20","v":"Incorporated Orthopaedic Hospital of Ireland"},"All_loc"]
[null,null,null,null,null,null,null,null,null,null,null,null,null,null,null,null,null,null,null,null,null,null,null,null,null,null,null,null,null,null,null,null,null,null,"S38",{"$f":"AM21","v":"KARE, Promotion inclusion of People with Intellectual Disabilities"},"All_loc"]
[null,null,null,null,null,null,null,null,null,null,null,null,null,null,null,null,null,null,null,null,null,null,null,null,null,null,null,null,null,null,null,null,null,null,"S38",{"$f":"AM22","v":"Mater Misericordiae University Hospital"},"All_loc"]
[null,null,null,null,null,null,null,null,null,null,null,null,null,null,null,null,null,null,null,null,null,null,null,null,null,null,null,null,null,null,null,null,null,null,"S38",{"$f":"AM23","v":"Mercy University Hospital Cork company limited by Guarantee"},"All_loc"]
[null,null,null,null,null,null,null,null,null,null,null,null,null,null,null,null,null,null,null,null,null,null,null,null,null,null,null,null,null,null,null,null,null,null,"S38",{"$f":"AM24","v":"Muirosa Foundation"},"All_loc"]
[null,null,null,null,null,null,null,null,null,null,null,null,null,null,null,null,null,null,null,null,null,null,null,null,null,null,null,null,null,null,null,null,null,null,"S38",{"$f":"AM25","v":"National Maternity Hospital"},"All_loc"]
[null,null,null,null,null,null,null,null,null,null,null,null,null,null,null,null,null,null,null,null,null,null,null,null,null,null,null,null,null,null,null,null,null,null,"S38",{"$f":"AM26","v":"National Rehabilitation hospital"},"All_loc"]
[null,null,null,null,null,null,null,null,null,null,null,null,null,null,null,null,null,null,null,null,null,null,null,null,null,null,null,null,null,null,null,null,null,null,"S38",{"$f":"AM27","v":"Our Lady's childrens Hospital, Crumlin"},"All_loc"]
[null,null,null,null,null,null,null,null,null,null,null,null,null,null,null,null,null,null,null,null,null,null,null,null,null,null,null,null,null,null,null,null,null,null,"S38",{"$f":"AM28","v":"Our Lady's Hospice & Care Services"},"All_loc"]
[null,null,null,null,null,null,null,null,null,null,null,null,null,null,null,null,null,null,null,null,null,null,null,null,null,null,null,null,null,null,null,null,null,null,"S38",{"$f":"AM29","v":"Peamount Healthcare"},"All_loc"]
[null,null,null,null,null,null,null,null,null,null,null,null,null,null,null,null,null,null,null,null,null,null,null,null,null,null,null,null,null,null,null,null,null,null,"S38",{"$f":"AM30","v":"Rotunda Hospital"},"All_loc"]
[null,null,null,null,null,null,null,null,null,null,null,null,null,null,null,null,null,null,null,null,null,null,null,null,null,null,null,null,null,null,null,null,null,null,"S38",{"$f":"AM31","v":"Royal Hospital Donnybrook"},"All_loc"]
[null,null,null,null,null,null,null,null,null,null,null,null,null,null,null,null,null,null,null,null,null,null,null,null,null,null,null,null,null,null,null,null,null,null,"S38",{"$f":"AM32","v":"Royal Victoria Eye and Ear Hospital"},"All_loc"]
[null,null,null,null,null,null,null,null,null,null,null,null,null,null,null,null,null,null,null,null,null,null,null,null,null,null,null,null,null,null,null,null,null,null,"S38",{"$f":"AM33","v":"Saint Michaels Hospital - Dun Laoighre"},"All_loc"]
[null,null,null,null,null,null,null,null,null,null,null,null,null,null,null,null,null,null,null,null,null,null,null,null,null,null,null,null,null,null,null,null,null,null,"S38",{"$f":"AM34","v":"South Infirmary Victoria university Hospital"},"All_loc"]
[null,null,null,null,null,null,null,null,null,null,null,null,null,null,null,null,null,null,null,null,null,null,null,null,null,null,null,null,null,null,null,null,null,null,"S38",{"$f":"AM35","v":"St. James's Hospital"},"All_loc"]
[null,null,null,null,null,null,null,null,null,null,null,null,null,null,null,null,null,null,null,null,null,null,null,null,null,null,null,null,null,null,null,null,null,null,"S38","St. John of God Community Services Company Limited by Guarantee","All_loc"]
[null,null,null,null,null,null,null,null,null,null,null,null,null,null,null,null,null,null,null,null,null,null,null,null,null,null,null,null,null,null,null,null,null,null,"S38","St. Johns Hospital","All_loc"]
[null,null,null,null,null,null,null,null,null,null,null,null,null,null,null,null,null,null,null,null,null,null,null,null,null,null,null,null,null,null,null,null,null,null,"S38","St. Michaels House","All_loc"]
[null,null,null,null,null,null,null,null,null,null,null,null,null,null,null,null,null,null,null,null,null,null,null,null,null,null,null,null,null,null,null,null,null,null,"S38","St. Vincent's Healthcare group","All_loc"]
[null,null,null,null,null,null,null,null,null,null,null,null,null,null,null,null,null,null,null,null,null,null,null,null,null,null,null,null,null,null,null,null,null,null,"S38","St. Vincent's Hospital Fairview","All_loc"]
[null,null,null,null,null,null,null,null,null,null,null,null,null,null,null,null,null,null,null,null,null,null,null,null,null,null,null,null,null,null,null,null,null,null,"S38",{"$f":"AM41","v":"Stewarts Care Limited"},{"$f":"AN41","v":"All_loc"}]
[null,null,null,null,null,null,null,null,null,null,null,null,null,null,null,null,null,null,null,null,null,null,null,null,null,null,null,null,null,null,null,null,null,null,"S38",{"$f":"AM42","v":"Sunbeam House Services company limited by Guarantee"},{"$f":"AP4","v":"All_loc"}]
[null,null,null,null,null,null,null,null,null,null,null,null,null,null,null,null,null,null,null,null,null,null,null,null,null,null,null,null,null,null,null,null,null,null,"S38",{"$f":"AO4","v":"Other Section 39"},{"$f":"AP5","v":"All_loc"}]
[null,null,null,null,null,null,null,null,null,null,null,null,null,null,null,null,null,null,null,null,null,null,null,null,null,null,null,null,null,null,null,null,null,null,"S39",{"$f":"AO5","v":"Ability West"},{"$f":"AP6","v":"All_loc"}]
[null,null,null,null,null,null,null,null,null,null,null,null,null,null,null,null,null,null,null,null,null,null,null,null,null,null,null,null,null,null,null,null,null,null,"S39","Acquired Brain Injury, ABI Ireland",{"$f":"AP7","v":"All_loc"}]
[null,null,null,null,null,null,null,null,null,null,null,null,null,null,null,null,null,null,null,null,null,null,null,null,null,null,null,null,null,null,null,null,null,null,"S39","Ard Aoibhinn Center Company Limited by Guarantee",{"$f":"AP8","v":"All_loc"}]
[null,null,null,null,null,null,null,null,null,null,null,null,null,null,null,null,null,null,null,null,null,null,null,null,null,null,null,null,null,null,null,null,null,null,"S39","Autism Initiatives Ireland Company Limited by Guarantee","All_loc"]
[null,null,null,null,null,null,null,null,null,null,null,null,null,null,null,null,null,null,null,null,null,null,null,null,null,null,null,null,null,null,null,null,null,null,"S39","BEAM (Barrow Valley Enterprise for Adult Members with Special Needs Company Limited by Guarantee)","All_loc"]
[null,null,null,null,null,null,null,null,null,null,null,null,null,null,null,null,null,null,null,null,null,null,null,null,null,null,null,null,null,null,null,null,null,null,"S39","Cairdeas Centre Company Limited By Guarantee",{"$f":"AP11","v":"All_loc"}]
[null,null,null,null,null,null,null,null,null,null,null,null,null,null,null,null,null,null,null,null,null,null,null,null,null,null,null,null,null,null,null,null,null,null,"S39","Camphill Communities of Ireland",{"$f":"AP12","v":"All_loc"}]
[null,null,null,null,null,null,null,null,null,null,null,null,null,null,null,null,null,null,null,null,null,null,null,null,null,null,null,null,null,null,null,null,null,null,"S39","Childvision","All_loc"]
[null,null,null,null,null,null,null,null,null,null,null,null,null,null,null,null,null,null,null,null,null,null,null,null,null,null,null,null,null,null,null,null,null,null,"S39","Clann Mor Residential & Respite Company Limited by Guarantee","All_loc"]
[null,null,null,null,null,null,null,null,null,null,null,null,null,null,null,null,null,null,null,null,null,null,null,null,null,null,null,null,null,null,null,null,null,null,"S39","Co Wexford Community Workshop (New Ross) Company Limited by Guarantee","All_loc"]
[null,null,null,null,null,null,null,null,null,null,null,null,null,null,null,null,null,null,null,null,null,null,null,null,null,null,null,null,null,null,null,null,null,null,"S39","Co. Wexford Community Workshop (Enniscorthy) Company Limited by Guarantee","All_loc"]
[null,null,null,null,null,null,null,null,null,null,null,null,null,null,null,null,null,null,null,null,null,null,null,null,null,null,null,null,null,null,null,null,null,null,"S39","CoAction West Cork Company Limited by Guarantee","All_loc"]
[null,null,null,null,null,null,null,null,null,null,null,null,null,null,null,null,null,null,null,null,null,null,null,null,null,null,null,null,null,null,null,null,null,null,"S39","Dara Community Living ","All_loc"]
[null,null,null,null,null,null,null,null,null,null,null,null,null,null,null,null,null,null,null,null,null,null,null,null,null,null,null,null,null,null,null,null,null,null,"S39","Delta Centre Company Limited by Guarantee","All_loc"]
[null,null,null,null,null,null,null,null,null,null,null,null,null,null,null,null,null,null,null,null,null,null,null,null,null,null,null,null,null,null,null,null,null,null,"S39","Drumlin House Training Centre Company Limited by Guarantee","All_loc"]
[null,null,null,null,null,null,null,null,null,null,null,null,null,null,null,null,null,null,null,null,null,null,null,null,null,null,null,null,null,null,null,null,null,null,"S39","Enable Ireland Disability Services","All_loc"]
[null,null,null,null,null,null,null,null,null,null,null,null,null,null,null,null,null,null,null,null,null,null,null,null,null,null,null,null,null,null,null,null,null,null,"S39","Family Carers Ireland","All_loc"]
[null,null,null,null,null,null,null,null,null,null,null,null,null,null,null,null,null,null,null,null,null,null,null,null,null,null,null,null,null,null,null,null,null,null,"S39","Gheel Autism Services Company Limited by Guarantee","All_loc"]
[null,null,null,null,null,null,null,null,null,null,null,null,null,null,null,null,null,null,null,null,null,null,null,null,null,null,null,null,null,null,null,null,null,null,"S39","Headway Ireland","All_loc"]
[null,null,null,null,null,null,null,null,null,null,null,null,null,null,null,null,null,null,null,null,null,null,null,null,null,null,null,null,null,null,null,null,null,null,"S39","Holy Angels Day Care Centre Company Limited by Guarantee","All_loc"]
[null,null,null,null,null,null,null,null,null,null,null,null,null,null,null,null,null,null,null,null,null,null,null,null,null,null,null,null,null,null,null,null,null,null,"S39","I.W.A. Company Limited by Guarantee","All_loc"]
[null,null,null,null,null,null,null,null,null,null,null,null,null,null,null,null,null,null,null,null,null,null,null,null,null,null,null,null,null,null,null,null,null,null,"S39","Inspired (AK Inspired Ability)","All_loc"]
[null,null,null,null,null,null,null,null,null,null,null,null,null,null,null,null,null,null,null,null,null,null,null,null,null,null,null,null,null,null,null,null,null,null,"S39","Kerry Parents and Friends Association","All_loc"]
[null,null,null,null,null,null,null,null,null,null,null,null,null,null,null,null,null,null,null,null,null,null,null,null,null,null,null,null,null,null,null,null,null,null,"S39","L'Arche Ireland","All_loc"]
[null,null,null,null,null,null,null,null,null,null,null,null,null,null,null,null,null,null,null,null,null,null,null,null,null,null,null,null,null,null,null,null,null,null,"S39","Moorehaven Centre (Tipperary) Designated Activity Company","All_loc"]
[null,null,null,null,null,null,null,null,null,null,null,null,null,null,null,null,null,null,null,null,null,null,null,null,null,null,null,null,null,null,null,null,null,null,"S39","Multiple Sclerosis, MS Ireland, The Multiple Sclerosis Society of Ireland","All_loc"]
[null,null,null,null,null,null,null,null,null,null,null,null,null,null,null,null,null,null,null,null,null,null,null,null,null,null,null,null,null,null,null,null,null,null,"S39","Order of Malta Regional Services Drogheda Company Limited by Guarantee","All_loc"]
[null,null,null,null,null,null,null,null,null,null,null,null,null,null,null,null,null,null,null,null,null,null,null,null,null,null,null,null,null,null,null,null,null,null,"S39","Peacehave Trust Company Limited by Guarantee","All_loc"]
[null,null,null,null,null,null,null,null,null,null,null,null,null,null,null,null,null,null,null,null,null,null,null,null,null,null,null,null,null,null,null,null,null,null,"S39","Positive Futures: Achieving Dreams. Transforming Lives Company Limited By Guarantee","All_loc"]
[null,null,null,null,null,null,null,null,null,null,null,null,null,null,null,null,null,null,null,null,null,null,null,null,null,null,null,null,null,null,null,null,null,null,"S39","PRAXIS CARE","All_loc"]
[null,null,null,null,null,null,null,null,null,null,null,null,null,null,null,null,null,null,null,null,null,null,null,null,null,null,null,null,null,null,null,null,null,null,"S39","Prosper Fingal Company Limited by Guarantee","All_loc"]
[null,null,null,null,null,null,null,null,null,null,null,null,null,null,null,null,null,null,null,null,null,null,null,null,null,null,null,null,null,null,null,null,null,null,"S39","Prosper Meath Company Limited by Guarantee","All_loc"]
[null,null,null,null,null,null,null,null,null,null,null,null,null,null,null,null,null,null,null,null,null,null,null,null,null,null,null,null,null,null,null,null,null,null,"S39","Reach Deaf Services","All_loc"]
[null,null,null,null,null,null,null,null,null,null,null,null,null,null,null,null,null,null,null,null,null,null,null,null,null,null,null,null,null,null,null,null,null,null,"S39","S O S Kilkenny Company Limited by Guarantee","All_loc"]
[null,null,null,null,null,null,null,null,null,null,null,null,null,null,null,null,null,null,null,null,null,null,null,null,null,null,null,null,null,null,null,null,null,null,"S39","St Catherines Association Company Limited by Guarantee","All_loc"]
[null,null,null,null,null,null,null,null,null,null,null,null,null,null,null,null,null,null,null,null,null,null,null,null,null,null,null,null,null,null,null,null,null,null,"S39","St. Aidan's Services Company Limited by Guarantee","All_loc"]
[null,null,null,null,null,null,null,null,null,null,null,null,null,null,null,null,null,null,null,null,null,null,null,null,null,null,null,null,null,null,null,null,null,null,"S39","St. Christopher's Services Company Limited by Guarantee","All_loc"]
[null,null,null,null,null,null,null,null,null,null,null,null,null,null,null,null,null,null,null,null,null,null,null,null,null,null,null,null,null,null,null,null,null,null,"S39","St. Cronans Association Company Limited by Guarantee","All_loc"]
[null,null,null,null,null,null,null,null,null,null,null,null,null,null,null,null,null,null,null,null,null,null,null,null,null,null,null,null,null,null,null,null,null,null,"S39","St. Gabriel's Foundation","All_loc"]
[null,null,null,null,null,null,null,null,null,null,null,null,null,null,null,null,null,null,null,null,null,null,null,null,null,null,null,null,null,null,null,null,null,null,"S39","St. Hilda's Services","All_loc"]
[null,null,null,null,null,null,null,null,null,null,null,null,null,null,null,null,null,null,null,null,null,null,null,null,null,null,null,null,null,null,null,null,null,null,"S39","St. Joseph's Foundation","All_loc"]
[null,null,null,null,null,null,null,null,null,null,null,null,null,null,null,null,null,null,null,null,null,null,null,null,null,null,null,null,null,null,null,null,null,null,"S39","St. Margaret’s Centre IRL-IASD Company Limited By Guarantee","All_loc"]
[null,null,null,null,null,null,null,null,null,null,null,null,null,null,null,null,null,null,null,null,null,null,null,null,null,null,null,null,null,null,null,null,null,null,"S39","The Anne Sullivan Centre","All_loc"]
[null,null,null,null,null,null,null,null,null,null,null,null,null,null,null,null,null,null,null,null,null,null,null,null,null,null,null,null,null,null,null,null,null,null,"S39","The Cheshire Foundation in Ireland","All_loc"]
[null,null,null,null,null,null,null,null,null,null,null,null,null,null,null,null,null,null,null,null,null,null,null,null,null,null,null,null,null,null,null,null,null,null,"S39","The Rehab Group","All_loc"]
[null,null,null,null,null,null,null,null,null,null,null,null,null,null,null,null,null,null,null,null,null,null,null,null,null,null,null,null,null,null,null,null,null,null,"S39","Vision Ireland (NCBI)","All_loc"]
[null,null,null,null,null,null,null,null,null,null,null,null,null,null,null,null,null,null,null,null,null,null,null,null,null,null,null,null,null,null,null,null,null,null,"S39","WALK Company Limited by Guarantee","All_loc"]
[null,null,null,null,null,null,null,null,null,null,null,null,null,null,null,null,null,null,null,null,null,null,null,null,null,null,null,null,null,null,null,null,null,null,"S39","Waterford Intellectual Disability Association Company Limited by Guarantee","All_loc"]
[null,null,null,null,null,null,null,null,null,null,null,null,null,null,null,null,null,null,null,null,null,null,null,null,null,null,null,null,null,null,null,null,null,null,"S39","Western Care Association","All_loc"]
[null,null,null,null,null,null,null,null,null,null,null,null,null,null,null,null,null,null,null,null,null,null,null,null,null,null,null,null,null,null,null,null,null,null,"S39","Windmill Therapeutic (Training) Unit Company Limited by Guarantee","All_loc"]
[null,null,null,null,null,null,null,null,null,null,null,null,null,null,null,null,null,null,null,null,null,null,null,null,null,null,null,null,null,null,null,null,null,null,"S39",0,"All_loc"]
[null,null,null,null,null,null,null,null,null,null,null,null,null,null,null,null,null,null,null,null,null,null,null,null,null,null,null,null,null,null,null,null,null,null,"S39",0,0]

{"sheet":"Grade List","index":2,"n_rows":948,"n_cols":10,"rows_kept":948,"cut":false,"hidden":true,"merged":[]}
["Code","Grade","Grade Category",null,"General Support","Health & Social Care Professionals","Management & Administrative","Medical & Dental","Nursing & Midwifery","Patient & Client Care"]
["0001","Chief Executive Officer (HSE)","Management & Administrative"]
["0003","Regional Director of Operations","Management & Administrative",null,"4001 Catering Officer, Grade II","3001 Cardiac Physiologist, Chief I","0001 Chief Executive Officer (HSE)","1000 Area Director, Public Health","2001 Nursing & Midwifery Services Director","6001 Assessment Officer (Disability Act)"]
["0005","Director General, Deputy","Management & Administrative",null,"4002 Catering Officer, Grade III","3002 Cardiac Physiologist, Chief II","0003 Regional Director of Operations","1001 National Director, Public Health","2002 Clinical Skills Development Director","6002 Community Swabber (COVID-19)*"]
["0006","HSE Area [ISA] Manager","Management & Administrative",null,"4006 Dental Technician","3003 Cardiac Physiologist, Senior","0005 Director General, Deputy","1002 Senior House Officer, Intensive Care","2004 Director of Midwifery, NWIHP","6003 Testing Centre Co-Ordinator (COVID 19)*"]
["0007","Board Member (not in census)","Management & Administrative",null,"4007 Dental Craftsman/Technician, Chief (GSS)","3004 E.C.G. Technician, Chief I","0006 HSE Area [ISA] Manager","1003 Senior House Officer, Anaesthesia","200X Nurse Planner","6004 Testing Centre Deputy Co-Ordinator (COVID 19)*"]
["0008","Interviewer (not in census)","Management & Administrative",null,"4008 Dental Technician, Senior","3006 Maxillo Facial Technician","0007 Board Member (not in census)","1004 Senior House Officer, Emergency Medicine","2011 Director of Nursing, Deputy","6006 Services Coordinator 1 (Disability Services)"]
["0009","Chief Executive, Hospital Group","Management & Administrative",null,"4011 Gardener/ Groundsman, Head","3007 Perfusionist","0008 Interviewer (not in census)","1005 Senior House Officer, Medicine","202X Staff Nurse General (Community)","6007 Services Coordinator 2 (Disability Services)"]
["0011","Head of Shared Financial Services (HSE)","Management & Administrative",null,"4012 Chef, Head","3008 Respiratory Physiologist, Chief I","0009 Chief Executive, Hospital Group","1006 Senior House Officer, Obstetrics & Gynaecology","2046 Clinical Nurse Manager 3 - Night","6008 Services Coordinator 3 (Disability Services)"]
["0016","Chief Finance Officer (HSE)","Management & Administrative",null,"4013 Hostel Supervisor","3009 Respiratory Physiologist, Chief II","0011 Head of Shared Financial Services (HSE)","1007 Senior House Officer, Ophthalmology","2062 Student Nurse Children's Nursing (post registration)","6009 Services Coordinator 4 (Disability Services)"]
["0017","National Director, Human Resources","Management & Administrative",null,"4014 Catering Officer Grade I","3010 Respiratory Physiologist, Senior","0016 Chief Finance Officer (HSE)","1008 Senior House Officer, Paediatrics","2089 Staff Midwife, Senior","6010 Children's Disability Network Manager"]
["0019","Chief Executive Officer","Management & Administrative",null,"4016 Pharmacy Assistant","3013 Pharmacist, Student","0017 National Director, Human Resources","1009 Senior House Officer, Pathology","2090 Staff Midwife, Senior (Dual Qualified)","6011 Community Healthcare Network Manager"]
["0020","Chief Executive Officer, Deputy","Management & Administrative",null,"4022 Catering Supervisor","3014 Phlebotomist, Trainee","0019 Chief Executive Officer","1010 Senior House Officer, Psychiatry","2097 Nurse Tutor (Midwifery)","6012 Health Care Assistant (Band 1)/(specific sites only)"]
["0023","Director of Information Technology (HSE)","Management & Administrative",null,"402T Catering Supervisor, Assistant.","3015 Play Therapist","0020 Chief Executive Officer, Deputy","1011 Senior House Officer, Surgery","2105 Staff Nurse, Senior (Intellectual Disability)","6013 Theatre Operative"]
["0026","Director, Regional Health Office (HSE)","Management & Administrative",null,"4065 Cook, Trainee","3016 Respiratory Physiologist","0023 Director of Information Technology (HSE)","1012 Senior House Officer","2119 Clinical Nurse Manager 2","6014 Team Leader, Support Services"]
["0027","Programme Manager","Management & Administrative",null,"4068 Gardener/ Groundsman","3017 Social Worker","0026 Director, Regional Health Office (HSE)","1013 Consultant in Palliative Medicine","2127 Clinical Nurse Manager 1","6015 Attendant, Multi-Task"]
["0032","National Director Level 3 (Do not use - Obsolete)","Management & Administrative",null,"4073 Diningroom/Cafeteria Supervisor","3019 Social Worker, Senior Medical","0027 Programme Manager","1014 Consultant Oral & Maxillo Facial Surgeon","2131 Clinical Midwife Manager 1","6016 Attendant. Multi-Task Intern (Do not use - Obsolete)"]
["0033","Head of Process & Operations (HSE)","Management & Administrative",null,"4077 Medical Laboratory Aide","3020 Mould Room Technician (Do not use - Obsolete)","0032 National Director Level 3 (Do not use - Obsolete)","1015 Consultant Anaesthetist","2132 Clinical Midwife Manager 2","6017 Endoscopy Operative (Band 1)"]
["0037","General Manager, Deputy","Management & Administrative",null,"4081 Housekeeper","3021 Pharmaceutical Technician, Senior","0033 Head of Process & Operations (HSE)","1016 Consultant Paediatric Anaesthetist","2133 Clinical Midwife Manager 3","6018 Endoscopy Operative (Band 2)"]
["0041","General Manager","Management & Administrative",null,"4082 Household Services Manager","3022 Dental Hygienist","0037 General Manager, Deputy","1017 Consultant Anaesthetist s.i. pain medicine","2135 Staff Nurse - General","6024 Workshop Manager"]
["0042","Director, NCSS","Management & Administrative",null,"4083 Household Services Manager, Deputy","3024 Medical Scientist, Student","0041 General Manager","1018 Consultant Paediatrician s.i. paediatric neurodisability","2136 Staff Nurse (Children's)","6026 Vocational Officer"]
["0044","Director of Finance","Management & Administrative",null,"4092 Caretaker","3025 Speech & Language Therapist, Clinical Specialist","0042 Director, NCSS","1019 Consultant Paediatrician s.i. metabolic diseases","213T Staff Nurse - Intellectual Disability","6027 Community Welfare Officer, Supt."]
["0045","National Director, Communications","Management & Administrative",null,"409X Housekeeper, Assistant","3027 Director of Counselling (National Services)","0044 Director of Finance","101T Consultant Unclassified","2142 Staff Midwife (Adaptation Placement)","6030 Community Welfare Officer"]
["0046","National Director, Cancer Control","Management & Administrative",null,"4103 Domestic Supervisor","3028 Counsellor / Therapist (National Services)","0045 National Director, Communications","1020 Consultant Cardiologist & General Physician","2143 Staff Midwife","6038 Peer Support Worker"]
["0047","National Director, Quality & Patient Safety","Management & Administrative",null,"4105 Catering Manager","3029 Social Care Worker","0046 National Director, Cancer Control","1021 Consultant Paediatric Nephrologist","2144 Staff Midwife (Dual Qualified)","6039 Peer Support Worker, Senior"]
["0049","National Director, Children & Families","Management & Administrative",null,"4106 Security Guard","3030 Social Care Leader","0047 National Director, Quality & Patient Safety","1022 Consultant Paediatric Cardiologist","2157 Staff Nurse, Senior (Mental Health)","6049 Patient Services Officer"]
["0050","Chief Information Officer, HSE (National Director)","Management & Administrative",null,"4110 Domestic","3031 Social Care Worker, Trainee","0049 National Director, Children & Families","1023 Consultant Paediatrician s.i. respiratory medicine","2165 Staff Nurse, Senior (Dual-Qualified Mental Health)","6058 Registrar Births/Deaths/Marriages"]
["0054","Director of Corporate Services","Management & Administrative",null,"4111 Catering/Cleaner/Assistant","3035 Dosimetrist, Basic","0050 Chief Information Officer, HSE (National Director)","1024 Consultant Paediatric Oncologist","2173 Staff Nurse, Senior (General)","6066 Health Education Officer"]
["0055","Director of HR","Management & Administrative",null,"4113 Cleaner","3036 Dosimetrist, Senior","0054 Director of Corporate Services","1025 Consultant Paediatric Neurologist","2181 Staff Nurse, Senior (Dual Qualified)","6067 Health Promotion Officer"]
["0057","National Director, Shared Services","Management & Administrative",null,"4114 Household Attendant/Cleaner/Domestic, Intern (Do not use - Obsolete)","3037 Social Worker, Psychiatric Senior","0055 Director of HR","1026 Consultant Paediatric Endocrinologist","2182 Staff Nurse, Senior (Dual Qualified Intellectual Disability)","6068 Health Promotion Officer, Senior"]
["0058","National Director, Health & Well Being","Management & Administrative",null,"4120 Head of Catering","3038 Environmental Health Officer, Trainee","0057 National Director, Shared Services","1027 Consultant Paediatric Gastroenterologist","2183 Staff Nurse, Senior (Dual Qualified Children's)","6075 Health Care Assistant"]
["0059","National Director, Hospital Care","Management & Administrative",null,"4123 Catering Assistant","3039 Laboratory Technician (RPAL)","0058 National Director, Health & Well Being","1028 Consultant Paediatric Histopathologist","219X Staff Nurse, Senior (Children's)","6076 Health Care Assistant, intern (Do not use - Obsolete)"]
["0060","National Director, Mental Health","Management & Administrative",null,"413Y Driver","3040 Laboratory Technician, Senior (RPAL)","0059 National Director, Hospital Care","1029 Consultant Psychiatrist in the Psychiatry of Old Age","2208 Student Midwifery (post registration)","6077 Health Care Assistant (Student Nurse/Midwife COVID-19)"]
["0061","National Director, Primary Care","Management & Administrative",null,"4146 Linen Room/Laundry Supervisor","3043 Physicist, Graduate Trainee","0060 National Director, Mental Health","1030 Consultant Paediatric Immunologist","2209 Student Midwifery Intern (pre-registration)","6083 General Assistant"]
["0062","National Director, Social Care","Management & Administrative",null,"4197 Porter","3044 Maxillo Facial Technician, Chief","0061 National Director, Primary Care","1031 Consultant Respiratory & General Physician","2210 Student Midwifery (post registration)/ Enhanced","6091 General Assistant, Senior"]
["0063","Chief Officer, Community Healthcare Organisation","Management & Administrative",null,"4198 Porter, Intern","3048 Molecular Microbiologist","0062 National Director, Social Care","1032 Consultant in Paediatric Dentistry","2211 Student Nurse Children's Nursing (post registration) / Enhanced","6100 Head of Bed Management (Category A)"]
["0064","Chief Executive Officer, National Screening Service","Management & Administrative",null,"4201 Storeperson A","3049 Director of Pharmaceutical Services (Do not use - Obsolete)","0063 Chief Officer, Community Healthcare Organisation","1033 Consultant Anaesthetist s.i. intensive care medicine","2212 Student Psychiatric Nursing (post-registration) / Enhanced","6101 Head of Bed Management (Category B)"]
["0065","National Director, Access and Integration ","Management & Administrative",null,"4202 Storeperson B","3050 High Support Unit Manager (Do not use - Obsolete)","0064 Chief Executive Officer, National Screening Service","1034 Consultant Anaesthetist s.i. paediatric anaesthesia","2259 Clinical Nurse Manager 1 - Theatre","6102 Head of Bed Management (Category C)"]
["0066","National Director, Clinical Programmes","Management & Administrative",null,"4203 Storeperson C","3052 Counsellor Therapist (Adult Services)","0065 National Director, Access and Integration ","1035 Consultant Respiratory & General Physician s.i. cystic fibrosis","2267 Advanced Nurse Practitioner (General)","6104 Therapeutic Security Supervisor NFMHS"]
["0067","National Lead, Transformation & Change","Management & Administrative",null,"420Y Porter, Head","3054 Vascular Physiologist, Chief II","0066 National Director, Clinical Programmes","1036 Consultant Respiratory & General Physician s.i. tuberculosis","2268 Advanced Nurse Practitioner (Mental Health)","6116 Cardiac Aide"]
["0068","National Director, Head of Strategic Infrastructure Capital Delivery ","Management & Administrative",null,"4211 Chef, Executive","3055 High Support Unit Manager, Deputy (Do not use - Obsolete)","0067 National Lead, Transformation & Change","1037 Consultant Respiratory & General Physician s.i. thoracic organ transplantation","2269 Advanced Nurse Practitioner (Community /Primary Care)","6120 Clinical Paramedical Supervisor"]
["0070","Regional Director for Performance & Integration","Management & Administrative",null,"422X Dark Room Technician/Porter","3056 Psychotherapist","0068 National Director, Head of Strategic Infrastructure Capital Delivery ","1038 Consultant Dermatologist s.i. paediatric dermatology","2270 Advanced Nurse Practitioner (Children's)","6122 Ambulance Officer"]
["0071","CEO (Band H1 Hospital)","Management & Administrative",null,"4238 Storeperson","3057 Perfusionist, Senior","0070 Regional Director for Performance & Integration","1039 Consultant Gastroenterologist & General Physician s.i. liver diseases","2271 Advanced Nurse Practitioner (Intellectual Disability)","6123 Ambulance Officer, Asst. Chief"]
["0072","CEO (Band H2 Hospital)","Management & Administrative",null,"424X Boilerman","3058 Perfusionist, Student","0071 CEO (Band H1 Hospital)","1040 Consultant Physician s.i. metabolic diseases","2272 Advanced Nurse Practitioner, Candidate (General)","6124 Driver (Doctor-on-call)"]
["0073","CEO (Band H3 Hospital)","Management & Administrative",null,"4262 Labourer","3059 Perfusionist, in charge","0072 CEO (Band H2 Hospital)","1041 Consultant Physician in Infectious Diseases s.i. intensive care medicine","2274 Advanced Nurse Practitioner, Candidate (Mental Health)","6125 Ambulance Officer, Chief"]
["0074","CEO (Band H4 Hospital)","Management & Administrative",null,"427Y Chef, Senior","305T Endocrinology Technician (Do not use - Obsolete)","0073 CEO (Band H3 Hospital)","1042 Consultant Obstetrician & Gynaecologist s.i. maternal-fetal medicine","2276 Advanced Nurse Practitioner, Candidate (Community /Primary Care)","6126 National Emergency Operations Centre (NEOC) Duty Supervisor "]
["0075","CEO (Band H5 Hospital)","Management & Administrative",null,"4297 Stores Porter/Assistant/Attendant","3060 Children's First Information Officer (Do not use - Obsolete)","0074 CEO (Band H4 Hospital)","1043 Consultant Obstetrician & Gynaecologist s.i. uro-gynaecology","2277 Advanced Nurse Practitioner, Candidate (Children's)","6127 National Emergency Operations Centre (NEOC) Duty Manager"]
["0076","CEO (CUH & CUMH / GUH)","Management & Administrative",null,"4327 Work Placement (Support Services)","3061 Gastrointestinal (GI) Physiologist","0075 CEO (Band H5 Hospital)","1044 Consultant Obstetrician & Gynaecologist s.i. gynaecological oncology","2278 Advanced Nurse Practitioner, Candidate (Intellectual Disability)","6128 Ambulance Service Shift Manager"]
["0078","Personnel Officer/Manager","Management & Administrative",null,"4332 Domestic Supervisor, Assistant","3062 Gastrointestinal (GI) Physiologist, Senior","0076 CEO (CUH & CUMH / GUH)","1045 Consultant Obstetrician & Gynaecologist s.i. reproductive medicine","2280 Enhanced Midwife","6129 Ambulance Service Tactical Manager, Senior"]
["0080","CEO (Band SC1 Social Care)  ","Management & Administrative",null,"4343 Chef, Journeyman (Do not use - Obsolete)","3064 Gastrointestinal (GI) Physiologist, Chief II","0078 Personnel Officer/Manager","1046 Consultant Paediatrician s.i. community child health","2281 Enhanced Nurse (Children's)","6130 Ambulance Service Tactical Manager"]
["0081","CEO (Band SC2 Social Care)","Management & Administrative",null,"4351 Linen Room/Laundry Supervisor, Assistant (Do not use - Obsolete)","3067 Regional Drugs Taskforce Coordinator","0080 CEO (Band SC1 Social Care)  ","1047 Consultant Paediatrician s.i. infectious diseases","2282 Enhanced Nurse (Community/Primary Care)","6131 Ambulance Service District Operations Manager"]
["0082","CEO (Band SC3 Social Care)  ","Management & Administrative",null,"4372 Transport Officer","3068 Vaccinator - COVID 19 Vaccination Programme","0081 CEO (Band SC2 Social Care)","1048 Consultant Paediatrician s.i. rheumatology","2283 Enhanced Nurse (General)","6132 Driver (Patients/Clients Public Roads)"]
["0083","CEO (Band SC4 Social Care)","Management & Administrative",null,"4413 Seamstress/ Tailor","3069 Respiratory Technician, Student","0082 CEO (Band SC3 Social Care)  ","1049 Consultant Paediatrician s.i. paediatric palliative medicine","2284 Enhanced Nurse (Intellectual Disability)","6133 Intermediate Care Operative"]
["0086","Planning and Evaluation Officer","Management & Administrative",null,"448Y Porter, Theatre","3070 Clinical Coordinator","0083 CEO (Band SC4 Social Care)","104X Vocational Trainee in Dentistry","2285 Enhanced Nurse (Mental Health)","6200 Health Promotion & Improvement Officer"]
["0087","Head of Function /Service, Community Services","Management & Administrative",null,"4495 Support Services Unclassified","3072 Psyschosis Key Worker, Early Intervention","0086 Planning and Evaluation Officer","1050 Consultant Paediatrician s.i. paediatric cardiology","2286 Enhanced Midwife, Senior","6300 Health Promotion & Improvement Officer, Senior"]
["0088","Children First Programme Lead","Management & Administrative",null,"451Y Chef I","3077 Vascular Physiologist","0087 Head of Function /Service, Community Services","1051 Consultant Microbiologist s.i. virology","2287 Enhanced Nurse, Senior (Children's)","6400 Nurse's Aide"]
["0089","Procurement, Assistant Head","Management & Administrative",null,"4521 Clerk of Works","3078 National Lead Employee Assistance Programme","0088 Children First Programme Lead","1052 Consultant Haematologist (Clinical & Laboratory) s.i. paediatric haematology","2288 Enhanced Nurse, Senior (Community/Primary Care)","6402 Workshop Supervisor/Instructor, Senior"]
["0090","Head of Function /Service, Acute Services","Management & Administrative",null,"4529 Chef II","3093 Radiographer","0089 Procurement, Assistant Head","1053 Consultant Haematologist (Clinical & Laboratory) s.i. transfusion medicine","2289 Enhanced Nurse, Senior (General)","6403 Pastoral Care Worker"]
["0091","Head of Function /Service, National Services","Management & Administrative",null,"4645 Pathology Technician","309X Radiography Service Manager, I","0090 Head of Function /Service, Acute Services","1054 Consultant Histopathologist s.i. neuropathology","2290 Enhanced Nurse, Senior (Intellectual Disability)","6404 Chaplain"]
["0093","Manager, National Women & Infants Health Programme","Management & Administrative",null,"4653 Pathology Technician, Senior","3102 Director of Services, Mayo Community Living","0091 Head of Function /Service, National Services","1055 Consultant Histopathologist s.i. cytology","2291 Director of the Nursing & Midwifery P&D Unit","6405 Chaplaincy Services, coordinator"]
["0094","Special Care Unit, Director","Management & Administrative",null,"4734 Driver, Minibus","3103 Counsellor/ Therapist, Senior (National Services)","0093 Manager, National Women & Infants Health Programme","1056 Consultant Histopathologist s.i. oral pathology","2292 Area Director Nurse & Midwifery Planning & Development","6415 Attendant/ Aide"]
["0095","National Director, Level 1","Management & Administrative",null,"4900 Laundry Worker","3104 interRAI Care Needs Facilitator","0094 Special Care Unit, Director","1057 Consultant Histopathologist s.i. perinatal pathology","2293 Enhanced Nurse, Senior (Mental Health)","6416 Family Support Worker"]
["0097","National Director, Level 3","Management & Administrative",null,"4901 Mortuary Attendant","3107 Radiographer, Senior","0095 National Director, Level 1","1058 Consultant Otolaryngologist","2301 Staff Nurse, Community Mental Health","6417 Nursing Auxiliary/Orderly"]
["0102","Director Special Care Unit, Deputy","Management & Administrative",null,"4902 Plaster Technician","3108 Radiography Service Manager III","0097 National Director, Level 3","1059 Consultant in Pain Medicine","2313 Clinical Midwife Specialist","6425 Workshop Supervisor/ Instructor"]
["0103","Regional Director, Communications & Public Affairs","Management & Administrative",null,"4905 Craftsman's Mate","310X Radiography Service Manager, II","0102 Director Special Care Unit, Deputy","1060 Consultant Immunologist (Clinical &  Laboratory) s.i. paediatric immunology","233X Clinical Nurse Manager 3","6430 Hairdresser/ Barber"]
["0104","Regional Director, Planning & Performance","Management & Administrative",null,"4908 Driver/ Porter","3110 Epidemiologist","0103 Regional Director, Communications & Public Affairs","1061 Consultant Child & Adolescent Psychiatrist s.i. substance misuse","2356 Clinical Nurse Manager 3 - Theatre","6434 Nursery Nurse"]
["0106","Regional Director, Finance","Management & Administrative",null,"496T Ward Clerk","3111 Epidemiologist, Senior","0104 Regional Director, Planning & Performance","1062 Consultant General Adult Psychiatrist s.i. psychiatry of learning disability","2364 Director of the Nursing & Midwifery P&D Unit, Asst","6436 Dental Surgery Assistant (unqualified)"]
["0107","Regional Director, People","Management & Administrative",null,"5000 Laboratory Porter","3112 Epidemiologist, Principal","0106 Regional Director, Finance","1063 Consultant Forensic Psychiatrist s.i. psychiatry of learning disability","2372 Clinical Nurse Manager 2 - Night","6437 Dental Nurse"]
["0120","Regional Executive Officer","Management & Administrative",null,"5001 Pharmacy Porter","3113 Surveillance Officer, Public Health","0107 Regional Director, People","1064 Consultant General Adult Psychiatrist s.i. liaison psychiatry","2380 Staff Nurse (Nursing Bank)","6439 Welfare Home, Supervisor"]
["014Y","Secretary Manager","Management & Administrative",null,"5002 Engineer/ Engineering Officer","3122 Dental Hygienist, Senior","0120 Regional Executive Officer","1065 Consultant General Adult Psychiatrist s.i. substance abuse","2381 Staff Nurse, Senior (Nursing Bank)","6440 Dental Nurse, Senior"]
["0153","Director of Information Systems (Do not use - Obsolete)","Management & Administrative",null,"5003 Pharmacy Aide-Attendant","3123 Radiography Tutor (Do not use - Obsolete)","014Y Secretary Manager","1066 Consultant Physician in Endocrinology","2382 Staff Nurse, Mental Health (Nursing Bank)","6450 Emergency Call Taker"]
["0161","Functional Officer","Management & Administrative",null,"5061 Maintenance Foreman","3131 Radiographer, Clinical Specialist","0153 Director of Information Systems (Do not use - Obsolete)","1067 Consultant General Adult Psychiatrist s.i. rehabilitation","2383 Staff Nurse Senior, Mental Health (Nursing Bank)","6453 Emergency Medical Technician, Student (Do not use - Obsolete)"]
["0195","Director of ICT","Management & Administrative",null,"506T Maintenance Foreman, Assistant","3140 HSCP National Lead","0161 Functional Officer","1068 Consultant General Adult Psychiatrist s.i. forensic psychiatry","2384 Staff Nurse, Children's (Nursing Bank)","6455 Emergency Medical Controller"]
["0205","Administrative Officer, Senior","Management & Administrative",null,"5070 Maintenance Manager","3141 HSCP Regional Integration Development Lead","0195 Director of ICT","1069 Consultant General Adult Psychiatrist s.i. psychotherapy","2385 Staff Nurse Senior, Children's (Nursing Bank)","6456 Emergency Medical Dispatcher"]
["0213","Librarian, Senior","Management & Administrative",null,"5071 Maintenance Officer","3142 HSCP Assistant National Lead – Clinical Advisory","0205 Administrative Officer, Senior","1070 Consultant Child & Adolescent Psychiatrist si psychiatry of learning disability","238Y Clinical Nurse Manager 3 (Mental Health)","6457 Emergency Medical Control Supervisor"]
["022T","Librarian, Assistant","Management & Administrative",null,"507T Maintenance Helper","3143 HSCP Assistant National Lead – Education","0213 Librarian, Senior","1071 Consultant Radiation Oncologist s.i. paediatric radiation oncology","241Y Nursing/ Midwifery Clinical Placement Co-ordinator","6463 Emergency Medical Technician (Do not use - Obsolete)"]
["0299","Special Care Unit Manager","Management & Administrative",null,"5088 Chargehand","3144 HSCP Assistant National Lead - Workforce Development","022T Librarian, Assistant","1072 Consultant Radiologist s.i. interventional radiology","2429 Clinical Nurse Manager 2 - Theatre","6464 Emergency Medical Technician, Leading"]
["031Y","Librarian","Management & Administrative",null,"5096 Electrician","3145 HSCP Assistant National Lead – Workforce Planning","0299 Special Care Unit Manager","1073 Consultant Radiologist s.i. nuclear medicine","2445 Nursing/ Midwifery Practice Development Co-ordinator","6466 Supervisor Welfare Home, Assistant"]
["0337","Special Care Unit Manager, Assistant","Management & Administrative",null,"5118 Painter","3146 National HSCP Strategic Projects Manager","031Y Librarian","1074 Consultant Physician in Geriatric Medicine","2465 Specialist Co-ordinator, Nursing","6479 Care Assistant (Disability), Intern (Do not use - Obsolete)"]
["0345","Work Placement (Management Admin)","Management & Administrative",null,"5126 Mechanic","3147 HSCP Regional Practice Education Coordinator","0337 Special Care Unit Manager, Assistant","1075 Consultant Radiologist s.i. breast radiology","247X Principal Nurse Tutor","6482 Care Assistant (Disability Services)"]
["0361","Service Manager","Management & Administrative",null,"5134 Plumber","3148 HSCP Regional Practice Development Coordinator","0345 Work Placement (Management Admin)","1076 Consultant Radiologist s.i. musculo-skeletal radiology","2525 Director of Nursing (Area Mental Health)","6484 Home Support Resource Officer"]
["0380","Statistician","Management & Administrative",null,"515Y Plasterer","3149 HSCP Project Officer ","0361 Service Manager","1077 Consultant Radiologist s.i. paediatric radiology","2526 Director of Nursing (Mental Health)","6491 Social Parent"]
["0381","Statistician, Senior","Management & Administrative",null,"5312 Draughtsman/Technician II","314X Physiotherapist","0380 Statistician","1078 Consultant Radiologist s.i. vascular radiology","2527 Clinical Nurse Manager 1 (Mental Health)","6492 Pool Attendant/ Supervisor"]
["0382","Statistician, Principal","Management & Administrative",null,"532Y Draughtsman/Technician I","3158 Physiotherapist, Senior","0381 Statistician, Senior","1079 Consultant Radiologist s.i. diagnostic neuro-radiology","2535 Advanced Midwife Practitioner","6493 Prosthetist, Senior"]
["0383","Statistician, Chief","Management & Administrative",null,"5363 Theatre Technician/Porter","3159 Physiotherapy, Placement Facilitator (Do not use - Obsolete)","0382 Statistician, Principal","1080 Consultant Otolaryngologist s.i. paediatric otolaryngology","2536 Advanced Midwife Practitioner, Candidate","6494 Health Care Assistant (Home Support)"]
["0396","Telephonist, Supervisor","Management & Administrative",null,"5371 Apprentice Craftworker","3160 Physiotherapy, Practice Tutor","0383 Statistician, Chief","1081 Consultant Ophthalmic Surgeon s.i. paediatric ophthalmic surgery","2542 Director of Nursing (Mental Health), Assistant","6499 Miscellaneous Childcare, Support Services"]
["0404","Technical Services Manager","Management & Administrative",null,"546T Technical Services Officer, Chief Asst.","3161 Clinical Engineering Technician","0396 Telephonist, Supervisor","1082 Consultant Physician in Genito-Urinary Medicine","2551 Public Health Nurse, Senior (Immunisation)","6500 Local Area Co-ordinator (Addiction Services)"]
["0412","Project Worker","Management & Administrative",null,"546Y Technical Services Officer","3162 Clinical Engineering Technician, Senior","0404 Technical Services Manager","1083 Consultant Ophthalmic Surgeon s.i. vitreo-retinal surgery","2580 Nurse Tutor","6501 Education Officer"]
["0420","Architectural Advisor, Chief","Management & Administrative",null,"5487 General Operative","3163 Clinical Engineering Technician, Principal","0412 Project Worker","1084 Consultant General Surgeon s.i. hepatobiliary surgery and liver transplantation","2585 Principal Nurse Tutor (Mental Health)","6502 Outreach Worker"]
["0421","Architectural Adviser, Deputy Chief","Management & Administrative",null,"5497 Fire Prevention Officer","3164 Clinical Engineering Technician, Chief","0420 Architectural Advisor, Chief","1085 Consultant General Surgeon s.i. colo-rectal surgery","2586 Nurse Tutor (Psychiatric)","6503 Physiotherapy Assistant"]
["0422","Architectural Adviser","Management & Administrative",null,"555T Technical Services Officer, Senior Asst.","3172 Environmental Health Officer, Regional Chief","0421 Architectural Adviser, Deputy Chief","1086 Consultant Cardiothoracic Surgeon s.i. paediatric cardiothoracic surgery","2606 Staff Nurse, Dual Qualified (Mental Health)","6504 Speech & Language Therapy Assistant"]
["0425","Engineering Adviser, Principal","Management & Administrative",null,"555X Technical Services Officer, Assistant","3173 Environmental Health Officer, Senior","0422 Architectural Adviser","1087 Consultant Cardiothoracic Surgeon s.i. transplantation","2617 Staff Nurse, Dual Qualified (General)","6505 Occupational Therapy Assistant"]
["0426","Engineering Adviser","Management & Administrative",null,"5606 Maintenance Craftsman/Technician","3181 Environmental Health Officer, Principal","0425 Engineering Adviser, Principal","1088 Consultant General Surgeon s.i. breast surgeon","2618 Staff Nurse, Dual Qualified (Children's)","6507 Appeals Officer"]
["0429","Quantity Surveying Adviser, Principal","Management & Administrative",null,"5777 C.S.S.D. Supervisor","3182 Physiotherapist-in-charge (Grade III)","0426 Engineering Adviser","1089 Consultant General Surgeon s.i. breast & endocrine surgery","2625 Clinical Nurse Specialist (Mental Health)","6508 Appeals Officer, Deputy"]
["042Y","Project Leader","Management & Administrative",null,"5785 C.S.S.D. Operative","3188 Specialist Paramedic","0429 Quantity Surveying Adviser, Principal","1090 Consultant General Surgeon s.i. gastrointestinal surgery","2626 Clinical Nurse Specialist (Children's)","6510 Work Placement (OP&CC) (Do not use - Obsolete)"]
["0430","Quantity Surveying Adviser","Management & Administrative",null,"5931 Laboratory Attendant","3190 Paramedic, Student","042Y Project Leader","1091 Consultant General Surgeon s.i. upper gastrointestinal surgery","2627 Clinical Nurse Specialist (Intellectual Disability)","6512 Regional Suicide Prevention Officer (Do not use - Obsolete)"]
["0448","National Director, Internal Audit","Management & Administrative",null,"5991 Maintenance/Technical Unclassified","3192 Hospital Ambulance Liason Supervisor","0430 Quantity Surveying Adviser","1092 Consultant Trauma &  Orthopaedic Surgeon s.i. paediatric orthopaedic surgery","2628 Clinical Nurse Specialist (Community/Primary Care)","6514 S.E.N. (General)"]
["0508","National Director, Assistant (Support)","Management & Administrative",null,"799E Generic - General Support **NOT IN USE **","3193 Paramedicine Practice Development Lead","0448 National Director, Internal Audit","1093 Consultant Trauma & Orthopaedic Surgeon s.i. spinal surgery","2632 Clinical Nurse Specialist (General)","6515 S.E.N. (Psychiatric)"]
["0509","National Director, Assistant (Services)","Management & Administrative",null,null,"3194 Emergency Medical Technician, Registered","0508 National Director, Assistant (Support)","1094 Consultant Paediatric Surgeon s.i. urology","2633 Staff Midwife (awaiting-registration)","6516 Home Management Advisor"]
["0511","Hospital Group, Chief Finance Officer","Management & Administrative",null,null,"3195 Paramedic, Registered","0509 National Director, Assistant (Services)","1095 Consultant Plastics, Reconstructive & Aesthetic Surgeon s.i. cleft lip & palate","2634 Staff Nurse, Children's (awaiting-registration)","6517 Home Management Advisor, Senior"]
["0512","Hospital Group, Chief Operations Officer","Management & Administrative",null,null,"319X Environmental Health Officer","0511 Hospital Group, Chief Finance Officer","1096 Consultant Urologist s.i. paediatric urology","2635 Staff Nurse, General (awaiting-registration)","6518 Home Help Organiser, Deputy"]
["0558","Grade IV","Management & Administrative",null,null,"3211 Clinical Photographer","0512 Hospital Group, Chief Operations Officer","1097 Consultant Cardiothoracic Surgeon s.i. thoracic surgery","2636 Staff Nurse, Intellectual Disability (awaiting-registration)","6519 Team Manager EIS"]
["0566","Grade V","Management & Administrative",null,null,"3212 Pharmaceutical Technician","0558 Grade IV","1098 Consultant General Surgeon s.i. Emergency Surgery","2637 Staff Nurse, Psychiatric (awaiting-registration)","6520 Occupational Guidance Officer"]
["0574","Grade VI","Management & Administrative",null,null,"321T Clinical Photographer, Senior","0566 Grade V","1099 Consultant Vascular Surgeon","2643 Director, Nursing/ Midwifery Education Centre","6521 Psychology Assistant"]
["0582","Grade VII","Management & Administrative",null,null,"3221 Lead Lymphoedema Specialist","0574 Grade VI","109Y Consultant Haematologist (Clinical & Laboratory)","2658 Clinical Nurse Manager 2 (Mental Health)","6525 Radiography Assistant"]
["0609","Clerical  Officer","Management & Administrative",null,null,"3222 Lymphoedema Specialist","0582 Grade VII","1100 Consultant Immunologist (Clinical & Laboratory) s.i. transplant immunology","266X Practice Nurse Facilitator","6526 Audiologist, Assistant"]
["0655","Grade VIII","Management & Administrative",null,null,"322Y Vascular Physiologist, Senior","0609 Clerical  Officer","1104 Consultant Neurologist","2674 Staff Nurse, Mental Health","6584 Home Support Resource Manager"]
["0656","Grade VIII, Regional, Patient & Service User Lead","Management & Administrative",null,null,"3239 Pharmacist, Senior","0655 Grade VIII","1112 Consultant Neurosurgeon","268Y Professional Development Nursing Officer","6931 Emergency Medical Controller - Team Leader"]
["0685","Local Health Office Manager","Management & Administrative",null,null,"3240 Pharmacist Executive Manager, Deputy","0656 Grade VIII, Regional, Patient & Service User Lead","1113 Consultant Neurosurgeon s.i. paediatric neurosurgery","2695 Clinical Nurse Specialist Candidate (Children’s)","699X Other Patient & Client Care Unclassified"]
["071X","Telephonist","Management & Administrative",null,null,"3244 Pharmacy Executive Manager 1","0685 Local Health Office Manager","112Y Consultant Clinical Neurophysiologist","2696 Clinical Nurse Specialist Candidate (Community/Primary Care) ","799F Health & Social Care Assistant (Therapy Assistant) "]
["0728","Telephonist, Night","Management & Administrative",null,null,"3245 Pharmacy Executive Manager 2","071X Telephonist","1139 Consultant Obstetrician & Gynaecologist","2697 Clinical Nurse Specialist Candidate (General)"]
["0739","Telephonist, Supervisor, Assistant","Management & Administrative",null,null,"3246 Pharmacy Executive Manager 3","0728 Telephonist, Night","1147 Consultant Ophthalmic Surgeon","2698 Clinical Nurse Specialist Candidate (Intellectual Disability)"]
["076Y","Accountant","Management & Administrative",null,null,"3247 Pharmacist","0739 Telephonist, Supervisor, Assistant","1150 Consultant Medical Ophthalmologist","2699 Clinical Nurse Specialist Candidate (Mental Health)"]
["0778","Hospital Administrator","Management & Administrative",null,null,"3250 Pharmacist, Advanced Specialist","076Y Accountant","1155 Consultant Paediatrician","2700 Clinical Midwife Specialist Candidate"]
["0810","Integrated Health Area Lead","Management & Administrative",null,null,"3255 Vascular Physiologist, Chief I","0778 Hospital Administrator","1163 Consultant General Physician","2704 Psychiatric Nurse, Community"]
["0884","Supplies Officer Grade A","Management & Administrative",null,null,"3263 Pharmacist, Chief I","0810 Integrated Health Area Lead","1167 Consultant General Physician s.i. pharmacology & therapeutics","2712 Clinical Nurse Instructor/Teacher"]
["0892","Supplies Officer Grade B","Management & Administrative",null,null,"3271 Pharmacist, Chief II","0884 Supplies Officer Grade A","1172 Consultant Neuropathologist","272Y Staff Nurse, Dual Qualified (Intellectual Disability)"]
["0906","Supplies Officer Grade C","Management & Administrative",null,null,"3280 Speech and Language Therapy Adaptation","0892 Supplies Officer Grade B","1180 Consultant Neuro-Radiologist","2739 Area Coordinator (Nursing)"]
["0914","Supplies Officer Grade D","Management & Administrative",null,null,"3281 Dietetics Adaptation","0906 Supplies Officer Grade C","1181 Consultant Paediatric Radiologist","2801 Director of Public Health Nursing"]
["0919","General Administrator","Management & Administrative",null,null,"3282 Medical Science Adaptation","0914 Supplies Officer Grade D","118X Consultant Radiologist","281X Director of Public Health Nursing, Assistant"]
["0932","Project Manager","Management & Administrative",null,null,"3283 Occupational Therapy Adaptation","0919 General Administrator","1198 Consultant Rheumatologist & General Physician","2828 Public Health Nurse"]
["099X","Administration Unclassified","Management & Administrative",null,null,"3284 Physiotherapy Adaptation","0932 Project Manager","1199 Consultant Rheumatologist","2836 Student Public Health Nursing (post registration)"]
["1000","Area Director, Public Health","Medical & Dental",null,null,"3285 Podiatry Adaptation","099X Administration Unclassified","1206 Consultant in Restorative Dentistry","2860 Staff Nurse (Adaptation Placement), Children's"]
["1001","National Director, Public Health","Medical & Dental",null,null,"3286 Radiation Therapy Adaptation","799A Generic - Management & Admin **NOT IN USE **","1210 Consultant Urologist & Transplant Surgeon","2861 Staff Nurse (Adaptation Placement), General"]
["1002","Senior House Officer, Intensive Care","Medical & Dental",null,null,"3287 Radiography Adaptation",null,"1211 Consultant Transplant Surgeon & Urologist","2862 Staff Nurse (Adaptation Placement), Mental Health"]
["1003","Senior House Officer, Anaesthesia","Medical & Dental",null,null,"3288 Social Work Adaptation",null,"1212 Director National (Consultant in Public Health Medicine)","2903 Director of Nursing 1"]
["1004","Senior House Officer, Emergency Medicine","Medical & Dental",null,null,"3298 Occupational Therapist",null,"1213 Director, National Health Intelligence","2904 Director of Nursing 2"]
["1005","Senior House Officer, Medicine","Medical & Dental",null,null,"3301 Occupational Therapist, Senior",null,"1214 Director, National Health Service Improvement","2905 Director of Nursing 2A"]
["1006","Senior House Officer, Obstetrics & Gynaecology","Medical & Dental",null,null,"3302 Occupational Therapist-in-charge III",null,"1215 Director, National Health Improvement","2906 Director of Nursing 3"]
["1007","Senior House Officer, Ophthalmology","Medical & Dental",null,null,"3304 Occupational Therapy Placement Facilitator",null,"1216 Consultant Public Health Medicine, National Health Protection","2907 Director of Nursing 4"]
["1008","Senior House Officer, Paediatrics","Medical & Dental",null,null,"3305 Occupational Therapy, Practice Tutor",null,"1217 Consultant Public Health Medicine, National Health Intelligence","2908 Director of Nursing 5"]
["1009","Senior House Officer, Pathology","Medical & Dental",null,null,"331X Occupational Therapist Manager",null,"1218 Consultant Public Health Medicine, National Health Service Improvement","2910 Director of Nursing 1, Assistant"]
["1010","Senior House Officer, Psychiatry","Medical & Dental",null,null,"3328 Dietitian Manager",null,"1219 Consultant Public Health Medicine, National Health Improvement","2911 Director of Nursing 2, Assistant"]
["1011","Senior House Officer, Surgery","Medical & Dental",null,null,"3346 Chiropodist/ Podiatrist, Senior",null,"121X Consultant Urologist","2912 Director of Nursing 3, Assistant"]
["1012","Senior House Officer","Medical & Dental",null,null,"3352 Chiropodist/ Podiatrist",null,"1220 Consultant Public Health Medicine, Health Protection","2913 Director of Nursing 4, Assistant"]
["1013","Consultant in Palliative Medicine","Medical & Dental",null,null,"3355 Podiatrist Manager",null,"1221 Consultant Public Health Medicine s.i. Health Intelligence","2914 Director of Nursing & Midwifery"]
["1014","Consultant Oral & Maxillo Facial Surgeon","Medical & Dental",null,null,"3356 Podiatrist Manager in Charge III",null,"1222 Consultant Public Health Medicine s.i. Health Service Improvement","2915 Director of Nursing & Midwifery, Hospital Group"]
["1015","Consultant Anaesthetist","Medical & Dental",null,null,"3361 Speech & Language Therapist Manager-in-charge III",null,"1223 Consultant Public Health Medicine s.i. Health Improvement","2916 Director of Midwifery 1"]
["1016","Consultant Paediatric Anaesthetist","Medical & Dental",null,null,"336Y Speech & Language Therapist",null,"1224 Consultant Public Health Medicine","2917 Director of Midwifery 2"]
["1017","Consultant Anaesthetist s.i. pain medicine","Medical & Dental",null,null,"3371 Social Care Manager 1",null,"1236 Consultant in Special Care Dentistry","2918 Director of Midwifery 3"]
["1018","Consultant Paediatrician s.i. paediatric neurodisability","Medical & Dental",null,null,"3372 Social Care Manager 2",null,"1244 Consultant Cardiologist","2919 Director of Midwifery 1, Assistant"]
["1019","Consultant Paediatrician s.i. metabolic diseases","Medical & Dental",null,null,"3373 Social Care Manager 3",null,"1252 Consultant Chemical Pathologist","2920 Director of Midwifery 2, Assistant"]
["101T","Consultant Unclassified","Medical & Dental",null,null,"3379 Speech & Language Therapist, Senior",null,"1253 Consultant Paediatric Chemical Pathologist","2921 Director of Midwifery 3, Assistant"]
["1020","Consultant Cardiologist & General Physician","Medical & Dental",null,null,"3380 Speech & Language Therapy, Placement Facilitator (Do not use - Obsolete)",null,"126Y Consultant Histopathologist","2930 Student Psychiatric Nursing Intern (pre-registration)"]
["1021","Consultant Paediatric Nephrologist","Medical & Dental",null,null,"3381 Speech & Language Therapy, Practice Tutor",null,"1279 Consultant General Surgeon","2931 Student General Nursing Intern (pre-registration)"]
["1022","Consultant Paediatric Cardiologist","Medical & Dental",null,null,"3389 Dietitian",null,"1280 Consultant General Surgeon Colo-rectal","2932 Student Intellectual Disability Nursing Intern (pre-registration"]
["1023","Consultant Paediatrician s.i. respiratory medicine","Medical & Dental",null,null,"3391 Dietitian Manager-in-charge III",null,"1287 Consultant Medical Oncologist","2933 Student Children's & General Nursing Intern (pre-registration)"]
["1024","Consultant Paediatric Oncologist","Medical & Dental",null,null,"3395 Dietitian, Senior",null,"1295 Consultant Cardio-thoracic Surgeon","2934 Student Psychiatric Nursing (post-registration)"]
["1025","Consultant Paediatric Neurologist","Medical & Dental",null,null,"3409 Orthoptist",null,"1309 Consultant Oral Surgeon","2939 Student General Nursing Intern  (COVID-19 HCA)"]
["1026","Consultant Paediatric Endocrinologist","Medical & Dental",null,null,"3410 National Clinical Laboratory Director",null,"1310 Community Healthcare Network, GP Lead","2940 Student Children's & General Nursing Intern (COVID-19 HCA)"]
["1027","Consultant Paediatric Gastroenterologist","Medical & Dental",null,null,"3417 Orthoptist, Senior",null,"1317 Public Health, Specialist","2941 Student Midwifery Intern (COVID-19 HCA)"]
["1028","Consultant Paediatric Histopathologist","Medical & Dental",null,null,"3420 Optometrist, Clinical",null,"1318 Director of Public Health","2942 Student Psychiatric Nursing Intern (COVID-19 HCA)"]
["1029","Consultant Psychiatrist in the Psychiatry of Old Age","Medical & Dental",null,null,"3425 Phlebotomist",null,"1319 Director of Community Care","2943 Student Intellectual Disability Nursing Intern (COVID-19 HCA)"]
["1030","Consultant Paediatric Immunologist","Medical & Dental",null,null,"3433 Phlebotomist, Senior",null,"1325 Area Medical Officer, Senior","2992 Nursing Unclassified"]
["1031","Consultant Respiratory & General Physician","Medical & Dental",null,null,"3441 Audiologist",null,"1333 Area Medical Officer","799C Generic - Nursing & Midwifery **NOT IN USE **"]
["1032","Consultant in Paediatric Dentistry","Medical & Dental",null,null,"3442 Audiological Scientist",null,"1341 Director, General Practice Training School"]
["1033","Consultant Anaesthetist s.i. intensive care medicine","Medical & Dental",null,null,"3443 Audiological Scientist, Senior",null,"1368 Director, Assistant General Practice Training School"]
["1034","Consultant Anaesthetist s.i. paediatric anaesthesia","Medical & Dental",null,null,"3444 Audiologist, Student",null,"137T Consultant Immunologist (Clinical & Laboratory)"]
["1035","Consultant Respiratory & General Physician s.i. cystic fibrosis","Medical & Dental",null,null,"3446 Audiology, National Lead",null,"1392 Consultant General Surgeon s.i. vascular surgery"]
["1036","Consultant Respiratory & General Physician s.i. tuberculosis","Medical & Dental",null,null,"3447 Audiologist, Clinical Specialist",null,"1394 Consultant General Surgeon s.i. paediatric surgery"]
["1037","Consultant Respiratory & General Physician s.i. thoracic organ transplantation","Medical & Dental",null,null,"3448 Audiology, Assistant National Lead",null,"1406 Clinical Director (Psychiatric Services)"]
["1038","Consultant Dermatologist s.i. paediatric dermatology","Medical & Dental",null,null,"3451 Paramedicine Tutor",null,"143Y Consultant General Adult Psychiatrist"]
["1039","Consultant Gastroenterologist & General Physician s.i. liver diseases","Medical & Dental",null,null,"3452 Paramedicine Tutor, Principal",null,"1457 Consultant Child & Adolescent Psychiatrist"]
["1040","Consultant Physician s.i. metabolic diseases","Medical & Dental",null,null,"345X Audiologist, Chief",null,"1465 Orthodontics, Specialist"]
["1041","Consultant Physician in Infectious Diseases s.i. intensive care medicine","Medical & Dental",null,null,"3468 Speech & Language Therapist Manager",null,"1473 Consultant Clinical Biochemist"]
["1042","Consultant Obstetrician & Gynaecologist s.i. maternal-fetal medicine","Medical & Dental",null,null,"3492 Physiotherapist Manager",null,"1481 Consultant General Surgeon Breast"]
["1043","Consultant Obstetrician & Gynaecologist s.i. uro-gynaecology","Medical & Dental",null,null,"350Y Social Worker, Principal",null,"1491 Ophthalmic Physician, Community"]
["1044","Consultant Obstetrician & Gynaecologist s.i. gynaecological oncology","Medical & Dental",null,null,"3522 Social Worker (Non-professionally qualified)",null,"149X Casualty Officer"]
["1045","Consultant Obstetrician & Gynaecologist s.i. reproductive medicine","Medical & Dental",null,null,"3557 Social Worker, Medical",null,"1503 Medical Officer"]
["1046","Consultant Paediatrician s.i. community child health","Medical & Dental",null,null,"3581 E.C.G. Technician, Senior",null,"1511 Consultant General Surgeon Gastro-intestinal"]
["1047","Consultant Paediatrician s.i. infectious diseases","Medical & Dental",null,null,"359T E.C.G. Technician",null,"1520 Registrar, General Practice"]
["1048","Consultant Paediatrician s.i. rheumatology","Medical & Dental",null,null,"3603 E.E.G./ E.C.G. Technician, Student",null,"1527 Registrar, Intensive Care"]
["1049","Consultant Paediatrician s.i. paediatric palliative medicine","Medical & Dental",null,null,"3604 Neuro-Physiologist",null,"1528 Registrar, Anaesthesia"]
["104X","Vocational Trainee in Dentistry","Medical & Dental",null,null,"3605 Neuro-Physiologist, Chief I",null,"1529 Registrar, Emergency Medicine"]
["1050","Consultant Paediatrician s.i. paediatric cardiology","Medical & Dental",null,null,"3606 Neuro-Physiologist, Chief II",null,"152X General Practitioner"]
["1051","Consultant Microbiologist s.i. virology","Medical & Dental",null,null,"3607 Neuro-Physiologist, Senior",null,"1530 Registrar, Medicine"]
["1052","Consultant Haematologist (Clinical & Laboratory) s.i. paediatric haematology","Medical & Dental",null,null,"3614 Social Work Practitioner, Senior",null,"1531 Registrar, Obstetrics & Gynaecology"]
["1053","Consultant Haematologist (Clinical & Laboratory) s.i. transfusion medicine","Medical & Dental",null,null,"362X Pharmaceutical Technician, Student",null,"1532 Registrar, Ophthalmology"]
["1054","Consultant Histopathologist s.i. neuropathology","Medical & Dental",null,null,"3654 Chiropodist, Clinical Specialist",null,"1533 Registrar, Paediatrics"]
["1055","Consultant Histopathologist s.i. cytology","Medical & Dental",null,null,"3662 Psychology, Director of",null,"1534 Registrar, Pathology"]
["1056","Consultant Histopathologist s.i. oral pathology","Medical & Dental",null,null,"3670 Psychology Trainee, Counselling",null,"1535 Registrar, Psychiatry"]
["1057","Consultant Histopathologist s.i. perinatal pathology","Medical & Dental",null,null,"3671 Psychology Trainee, Educational",null,"1536 Registrar, Radiology"]
["1058","Consultant Otolaryngologist","Medical & Dental",null,null,"367Y Psychologist, Senior Clinical",null,"1537 Registrar, Surgery"]
["1059","Consultant in Pain Medicine","Medical & Dental",null,null,"3689 Psychologist, Clinical",null,"1538 Registrar"]
["1060","Consultant Immunologist (Clinical &  Laboratory) s.i. paediatric immunology","Medical & Dental",null,null,"3690 Psychologist, Educational",null,"1554 Intern"]
["1061","Consultant Child & Adolescent Psychiatrist s.i. substance misuse","Medical & Dental",null,null,"3691 Psychologist, Counselling",null,"1589 Dental Surgeon, Senior"]
["1062","Consultant General Adult Psychiatrist s.i. psychiatry of learning disability","Medical & Dental",null,null,"3692 Psychologist, Senior Counselling",null,"1597 Dental Surgeon, General"]
["1063","Consultant Forensic Psychiatrist s.i. psychiatry of learning disability","Medical & Dental",null,null,"3693 Psychologist, Senior Educational",null,"1619 Dental Surgeon, Senior Administrative"]
["1064","Consultant General Adult Psychiatrist s.i. liaison psychiatry","Medical & Dental",null,null,"3697 Psychologist, Trainee Clinical",null,"1620 Dentist, Examining"]
["1065","Consultant General Adult Psychiatrist s.i. substance abuse","Medical & Dental",null,null,"3705 Play Therapist, Senior",null,"1626 Senior Registrar, Psychiatry"]
["1066","Consultant Physician in Endocrinology","Medical & Dental",null,null,"3706 Play Specialist",null,"1627 Senior Registrar"]
["1067","Consultant General Adult Psychiatrist s.i. rehabilitation","Medical & Dental",null,null,"3707 Physiotherapist, Clinical Specialist",null,"1628 Specialist Registrar"]
["1068","Consultant General Adult Psychiatrist s.i. forensic psychiatry","Medical & Dental",null,null,"3708 Play Specialist, Senior",null,"1629 Specialist Registrar, Anaesthesia"]
["1069","Consultant General Adult Psychiatrist s.i. psychotherapy","Medical & Dental",null,null,"3715 Dietitian, Clinical Specialist",null,"1630 Specialist Registrar, Emergency Medicine"]
["1070","Consultant Child & Adolescent Psychiatrist si psychiatry of learning disability","Medical & Dental",null,null,"3727 Psychologist, Principal Clinical",null,"1631 Specialist Registrar, Medicine"]
["1071","Consultant Radiation Oncologist s.i. paediatric radiation oncology","Medical & Dental",null,null,"3742 Analytical Chemist (without Branch E Cert)",null,"1632 Specialist Registrar, Obstetrics & Gynaecology"]
["1072","Consultant Radiologist s.i. interventional radiology","Medical & Dental",null,null,"3744 Analytical Chemist, (with Branch E Cert)",null,"1633 Specialist Registrar, Paediatrics"]
["1073","Consultant Radiologist s.i. nuclear medicine","Medical & Dental",null,null,"3751 Biochemist",null,"1634 Specialist Registrar, Pathology"]
["1074","Consultant Physician in Geriatric Medicine","Medical & Dental",null,null,"3759 Regional Public Analyst",null,"1636 Specialist Registrar, Public Health Medicine"]
["1075","Consultant Radiologist s.i. breast radiology","Medical & Dental",null,null,"3767 Regional Public Analyst, Deputy",null,"1637 Specialist Registrar, Radiology"]
["1076","Consultant Radiologist s.i. musculo-skeletal radiology","Medical & Dental",null,null,"376X Biochemist, Senior",null,"1638 Specialist Registrar, Surgery"]
["1077","Consultant Radiologist s.i. paediatric radiology","Medical & Dental",null,null,"3778 Biochemist, Principal",null,"1643 Consultant Intensivist"]
["1078","Consultant Radiologist s.i. vascular radiology","Medical & Dental",null,null,"3794 Physicist",null,"1644 Consultant in Paediatric Intensive Care"]
["1079","Consultant Radiologist s.i. diagnostic neuro-radiology","Medical & Dental",null,null,"3808 Physicist, Senior",null,"166X Consultant Learning Disability Psychiatry Child"]
["1080","Consultant Otolaryngologist s.i. paediatric otolaryngology","Medical & Dental",null,null,"3816 Physicist, Principal",null,"1678 Consultant Neonatologist"]
["1081","Consultant Ophthalmic Surgeon s.i. paediatric ophthalmic surgery","Medical & Dental",null,null,"3824 Occupational Therapist, Clinical Specialist",null,"1686 Consultant Radiation Oncologist"]
["1082","Consultant Physician in Genito-Urinary Medicine","Medical & Dental",null,null,"3832 Physicist, Chief",null,"1690 Consultant Emergency Medicine s.i. paediatric emergency medicine"]
["1083","Consultant Ophthalmic Surgeon s.i. vitreo-retinal surgery","Medical & Dental",null,null,"384Y Audiologist, Senior",null,"169T Consultant in Emergency Medicine"]
["1084","Consultant General Surgeon s.i. hepatobiliary surgery and liver transplantation","Medical & Dental",null,null,"3858 Rehabilitation Officer",null,"1708 Consultant Dermatologist"]
["1085","Consultant General Surgeon s.i. colo-rectal surgery","Medical & Dental",null,null,"3859 Physics Technician",null,"1716 Consultant Orthopaedic Surgeon"]
["1086","Consultant Cardiothoracic Surgeon s.i. paediatric cardiothoracic surgery","Medical & Dental",null,null,"3867 Cardiac Physiologist",null,"1717 Consultant Ophthalmic Surgeon s.i. neuro-ophthalmic surgery"]
["1087","Consultant Cardiothoracic Surgeon s.i. transplantation","Medical & Dental",null,null,"3875 Medical Scientist",null,"1724 Consultant Gastroenterologist & General Physician"]
["1088","Consultant General Surgeon s.i. breast surgeon","Medical & Dental",null,null,"3876 Medical Scientist, Chief",null,"1759 Consultant Psychiatrist of Learning Disability (adult)"]
["1089","Consultant General Surgeon s.i. breast & endocrine surgery","Medical & Dental",null,null,"3877 Medical Scientist, Senior",null,"1767 Consultant Paediatric Surgeon"]
["1090","Consultant General Surgeon s.i. gastrointestinal surgery","Medical & Dental",null,null,"3878 Medical Scientist, Specialist",null,"1775 Consultant Orthodontist"]
["1091","Consultant General Surgeon s.i. upper gastrointestinal surgery","Medical & Dental",null,null,"3879 Medical Scientist, Undergraduate",null,"1783 Consultant Nephrologist & General Physician"]
["1092","Consultant Trauma &  Orthopaedic Surgeon s.i. paediatric orthopaedic surgery","Medical & Dental",null,null,"3880 Medical Scientist, Trainee",null,"1791 Medical Officer, Principal"]
["1093","Consultant Trauma & Orthopaedic Surgeon s.i. spinal surgery","Medical & Dental",null,null,"3902 Social Worker, Team Leader",null,"180X Consultant in Rehabilitation Medicine"]
["1094","Consultant Paediatric Surgeon s.i. urology","Medical & Dental",null,null,"3918 Counsellor, Senior",null,"1826 Consultant Forensic Psychiatrist"]
["1095","Consultant Plastics, Reconstructive & Aesthetic Surgeon s.i. cleft lip & palate","Medical & Dental",null,null,"3919 Counsellor, Children's",null,"183T Medical Officer, Senior"]
["1096","Consultant Urologist s.i. paediatric urology","Medical & Dental",null,null,"391T Counsellor",null,"1856 Consultant Microbiologist"]
["1097","Consultant Cardiothoracic Surgeon s.i. thoracic surgery","Medical & Dental",null,null,"3922 Child Care Manager",null,"1864 Consultant Physician in Infectious Diseases"]
["1098","Consultant General Surgeon s.i. Emergency Surgery","Medical & Dental",null,null,"392X Social Care Manager",null,"188Y Associate Specialist"]
["1099","Consultant Vascular Surgeon","Medical & Dental",null,null,"392Y Social Care Manager, Deputy (Do not use - Obsolete)",null,"1899 Consultant Plastic Surgeon"]
["109Y","Consultant Haematologist (Clinical & Laboratory)","Medical & Dental",null,null,"393X Laboratory Manager",null,"1902 Master (Maternity Hospital)"]
["1100","Consultant Immunologist (Clinical & Laboratory) s.i. transplant immunology","Medical & Dental",null,null,"3942 NAS Emerging Threat Unit, Team Leader",null,"1937 Consultant in Clinical Genetics"]
["1104","Consultant Neurologist","Medical & Dental",null,null,"3948 Social Worker, Psychiatric",null,"1945 Medical Director"]
["1112","Consultant Neurosurgeon","Medical & Dental",null,null,"3950 Radiation Therapist",null,"194T Consultant Physician in Clinical Pharmacology & Therapeutics"]
["1113","Consultant Neurosurgeon s.i. paediatric neurosurgery","Medical & Dental",null,null,"3951 Radiation Therapist, Senior",null,"1961 Occupational Health Physician"]
["112Y","Consultant Clinical Neurophysiologist","Medical & Dental",null,null,"3956 Teacher",null,"197X Dental Surgeon, Principal"]
["1139","Consultant Obstetrician & Gynaecologist","Medical & Dental",null,null,"3957 Instructor",null,"1988 Dental Surgeon, Clinical Grade I"]
["1147","Consultant Ophthalmic Surgeon","Medical & Dental",null,null,"3958 Therapist",null,"1996 Medical & Dental Unclassified"]
["1150","Consultant Medical Ophthalmologist","Medical & Dental",null,null,"3959 Family Therapist",null,"799B Generic - Medical & Dental **NOT IN USE **"]
["1155","Consultant Paediatrician","Medical & Dental",null,null,"3964 Radiation Therapist, Clinical Specialist"]
["1163","Consultant General Physician","Medical & Dental",null,null,"3972 Radiation Therapy Service Manager I"]
["1167","Consultant General Physician s.i. pharmacology & therapeutics","Medical & Dental",null,null,"3974 Radiation Therapy Service Manager III"]
["1172","Consultant Neuropathologist","Medical & Dental",null,null,"398Y Radiation Therapy Service Manager II"]
["1180","Consultant Neuro-Radiologist","Medical & Dental",null,null,"3999 Health & Social Care Professionals Unclassified"]
["1181","Consultant Paediatric Radiologist","Medical & Dental",null,null,"799D Generic - Health & Social Care Professionals **NOT IN USE **"]
["118X","Consultant Radiologist","Medical & Dental"]
["1198","Consultant Rheumatologist & General Physician","Medical & Dental"]
["1199","Consultant Rheumatologist","Medical & Dental"]
["1206","Consultant in Restorative Dentistry","Medical & Dental"]
["1210","Consultant Urologist & Transplant Surgeon","Medical & Dental"]
["1211","Consultant Transplant Surgeon & Urologist","Medical & Dental"]
["1212","Director National (Consultant in Public Health Medicine)","Medical & Dental"]
["1213","Director, National Health Intelligence","Medical & Dental"]
["1214","Director, National Health Service Improvement","Medical & Dental"]
["1215","Director, National Health Improvement","Medical & Dental"]
["1216","Consultant Public Health Medicine, National Health Protection","Medical & Dental"]
["1217","Consultant Public Health Medicine, National Health Intelligence","Medical & Dental"]
["1218","Consultant Public Health Medicine, National Health Service Improvement","Medical & Dental"]
["1219","Consultant Public Health Medicine, National Health Improvement","Medical & Dental"]
["121X","Consultant Urologist","Medical & Dental"]
["1220","Consultant Public Health Medicine, Health Protection","Medical & Dental"]
["1221","Consultant Public Health Medicine s.i. Health Intelligence","Medical & Dental"]
["1222","Consultant Public Health Medicine s.i. Health Service Improvement","Medical & Dental"]
["1223","Consultant Public Health Medicine s.i. Health Improvement","Medical & Dental"]
["1224","Consultant Public Health Medicine","Medical & Dental"]
["1236","Consultant in Special Care Dentistry","Medical & Dental"]
["1244","Consultant Cardiologist","Medical & Dental"]
["1252","Consultant Chemical Pathologist","Medical & Dental"]
["1253","Consultant Paediatric Chemical Pathologist","Medical & Dental"]
["126Y","Consultant Histopathologist","Medical & Dental"]
["1279","Consultant General Surgeon","Medical & Dental"]
["1280","Consultant General Surgeon Colo-rectal","Medical & Dental"]
["1287","Consultant Medical Oncologist","Medical & Dental"]
["1295","Consultant Cardio-thoracic Surgeon","Medical & Dental"]
["1309","Consultant Oral Surgeon","Medical & Dental"]
["1310","Community Healthcare Network, GP Lead","Medical & Dental"]
["1317","Public Health, Specialist","Medical & Dental"]
["1318","Director of Public Health","Medical & Dental"]
["1319","Director of Community Care","Medical & Dental"]
["1325","Area Medical Officer, Senior","Medical & Dental"]
["1333","Area Medical Officer","Medical & Dental"]
["1341","Director, General Practice Training School","Medical & Dental"]
["1368","Director, Assistant General Practice Training School","Medical & Dental"]
["137T","Consultant Immunologist (Clinical & Laboratory)","Medical & Dental"]
["1392","Consultant General Surgeon s.i. vascular surgery","Medical & Dental"]
["1394","Consultant General Surgeon s.i. paediatric surgery","Medical & Dental"]
["1406","Clinical Director (Psychiatric Services)","Medical & Dental"]
["143Y","Consultant General Adult Psychiatrist","Medical & Dental"]
["1457","Consultant Child & Adolescent Psychiatrist","Medical & Dental"]
["1465","Orthodontics, Specialist","Medical & Dental"]
["1473","Consultant Clinical Biochemist","Medical & Dental"]
["1481","Consultant General Surgeon Breast","Medical & Dental"]
["1491","Ophthalmic Physician, Community","Medical & Dental"]
["149X","Casualty Officer","Medical & Dental"]
["1503","Medical Officer","Medical & Dental"]
["1511","Consultant General Surgeon Gastro-intestinal","Medical & Dental"]
["1520","Registrar, General Practice","Medical & Dental"]
["1527","Registrar, Intensive Care","Medical & Dental"]
["1528","Registrar, Anaesthesia","Medical & Dental"]
["1529","Registrar, Emergency Medicine","Medical & Dental"]
["152X","General Practitioner","Medical & Dental"]
["1530","Registrar, Medicine","Medical & Dental"]
["1531","Registrar, Obstetrics & Gynaecology","Medical & Dental"]
["1532","Registrar, Ophthalmology","Medical & Dental"]
["1533","Registrar, Paediatrics","Medical & Dental"]
["1534","Registrar, Pathology","Medical & Dental"]
["1535","Registrar, Psychiatry","Medical & Dental"]
["1536","Registrar, Radiology","Medical & Dental"]
["1537","Registrar, Surgery","Medical & Dental"]
["1538","Registrar","Medical & Dental"]
["1554","Intern","Medical & Dental"]
["1589","Dental Surgeon, Senior","Medical & Dental"]
["1597","Dental Surgeon, General","Medical & Dental"]
["1619","Dental Surgeon, Senior Administrative","Medical & Dental"]
["1620","Dentist, Examining","Medical & Dental"]
["1626","Senior Registrar, Psychiatry","Medical & Dental"]
["1627","Senior Registrar","Medical & Dental"]
["1628","Specialist Registrar","Medical & Dental"]
["1629","Specialist Registrar, Anaesthesia","Medical & Dental"]
["1630","Specialist Registrar, Emergency Medicine","Medical & Dental"]
["1631","Specialist Registrar, Medicine","Medical & Dental"]
["1632","Specialist Registrar, Obstetrics & Gynaecology","Medical & Dental"]
["1633","Specialist Registrar, Paediatrics","Medical & Dental"]
["1634","Specialist Registrar, Pathology","Medical & Dental"]
["1636","Specialist Registrar, Public Health Medicine","Medical & Dental"]
["1637","Specialist Registrar, Radiology","Medical & Dental"]
["1638","Specialist Registrar, Surgery","Medical & Dental"]
["1643","Consultant Intensivist","Medical & Dental"]
["1644","Consultant in Paediatric Intensive Care","Medical & Dental"]
["166X","Consultant Learning Disability Psychiatry Child","Medical & Dental"]
["1678","Consultant Neonatologist","Medical & Dental"]
["1686","Consultant Radiation Oncologist","Medical & Dental"]
["1690","Consultant Emergency Medicine s.i. paediatric emergency medicine","Medical & Dental"]
["169T","Consultant in Emergency Medicine","Medical & Dental"]
["1708","Consultant Dermatologist","Medical & Dental"]
["1716","Consultant Orthopaedic Surgeon","Medical & Dental"]
["1717","Consultant Ophthalmic Surgeon s.i. neuro-ophthalmic surgery","Medical & Dental"]
["1724","Consultant Gastroenterologist & General Physician","Medical & Dental"]
["1759","Consultant Psychiatrist of Learning Disability (adult)","Medical & Dental"]
["1767","Consultant Paediatric Surgeon","Medical & Dental"]
["1775","Consultant Orthodontist","Medical & Dental"]
["1783","Consultant Nephrologist & General Physician","Medical & Dental"]
["1791","Medical Officer, Principal","Medical & Dental"]
["180X","Consultant in Rehabilitation Medicine","Medical & Dental"]
["1826","Consultant Forensic Psychiatrist","Medical & Dental"]
["183T","Medical Officer, Senior","Medical & Dental"]
["1856","Consultant Microbiologist","Medical & Dental"]
["1864","Consultant Physician in Infectious Diseases","Medical & Dental"]
["188Y","Associate Specialist","Medical & Dental"]
["1899","Consultant Plastic Surgeon","Medical & Dental"]
["1902","Master (Maternity Hospital)","Medical & Dental"]
["1937","Consultant in Clinical Genetics","Medical & Dental"]
["1945","Medical Director","Medical & Dental"]
["194T","Consultant Physician in Clinical Pharmacology & Therapeutics","Medical & Dental"]
["1961","Occupational Health Physician","Medical & Dental"]
["197X","Dental Surgeon, Principal","Medical & Dental"]
["1988","Dental Surgeon, Clinical Grade I","Medical & Dental"]
["1996","Medical & Dental Unclassified","Medical & Dental"]
["2001","Nursing & Midwifery Services Director","Nursing & Midwifery"]
["2002","Clinical Skills Development Director","Nursing & Midwifery"]
["2004","Director of Midwifery, NWIHP","Nursing & Midwifery"]
["200X","Nurse Planner","Nursing & Midwifery"]
["2011","Director of Nursing, Deputy","Nursing & Midwifery"]
["202X","Staff Nurse General (Community)","Nursing & Midwifery"]
["2046","Clinical Nurse Manager 3 - Night","Nursing & Midwifery"]
["2062","Student Nurse Children's Nursing (post registration)","Nursing & Midwifery"]
["2089","Staff Midwife, Senior","Nursing & Midwifery"]
["2090","Staff Midwife, Senior (Dual Qualified)","Nursing & Midwifery"]
["2097","Nurse Tutor (Midwifery)","Nursing & Midwifery"]
["2105","Staff Nurse, Senior (Intellectual Disability)","Nursing & Midwifery"]
["2119","Clinical Nurse Manager 2","Nursing & Midwifery"]
["2127","Clinical Nurse Manager 1","Nursing & Midwifery"]
["2131","Clinical Midwife Manager 1","Nursing & Midwifery"]
["2132","Clinical Midwife Manager 2","Nursing & Midwifery"]
["2133","Clinical Midwife Manager 3","Nursing & Midwifery"]
["2135","Staff Nurse - General","Nursing & Midwifery"]
["2136","Staff Nurse (Children's)","Nursing & Midwifery"]
["213T","Staff Nurse - Intellectual Disability","Nursing & Midwifery"]
["2142","Staff Midwife (Adaptation Placement)","Nursing & Midwifery"]
["2143","Staff Midwife","Nursing & Midwifery"]
["2144","Staff Midwife (Dual Qualified)","Nursing & Midwifery"]
["2157","Staff Nurse, Senior (Mental Health)","Nursing & Midwifery"]
["2165","Staff Nurse, Senior (Dual-Qualified Mental Health)","Nursing & Midwifery"]
["2173","Staff Nurse, Senior (General)","Nursing & Midwifery"]
["2181","Staff Nurse, Senior (Dual Qualified)","Nursing & Midwifery"]
["2182","Staff Nurse, Senior (Dual Qualified Intellectual Disability)","Nursing & Midwifery"]
["2183","Staff Nurse, Senior (Dual Qualified Children's)","Nursing & Midwifery"]
["219X","Staff Nurse, Senior (Children's)","Nursing & Midwifery"]
["2208","Student Midwifery (post registration)","Nursing & Midwifery"]
["2209","Student Midwifery Intern (pre-registration)","Nursing & Midwifery"]
["2210","Student Midwifery (post registration)/ Enhanced","Nursing & Midwifery"]
["2211","Student Nurse Children's Nursing (post registration) / Enhanced","Nursing & Midwifery"]
["2212","Student Psychiatric Nursing (post-registration) / Enhanced","Nursing & Midwifery"]
["2259","Clinical Nurse Manager 1 - Theatre","Nursing & Midwifery"]
["2267","Advanced Nurse Practitioner (General)","Nursing & Midwifery"]
["2268","Advanced Nurse Practitioner (Mental Health)","Nursing & Midwifery"]
["2269","Advanced Nurse Practitioner (Community /Primary Care)","Nursing & Midwifery"]
["2270","Advanced Nurse Practitioner (Children's)","Nursing & Midwifery"]
["2271","Advanced Nurse Practitioner (Intellectual Disability)","Nursing & Midwifery"]
["2272","Advanced Nurse Practitioner, Candidate (General)","Nursing & Midwifery"]
["2274","Advanced Nurse Practitioner, Candidate (Mental Health)","Nursing & Midwifery"]
["2276","Advanced Nurse Practitioner, Candidate (Community /Primary Care)","Nursing & Midwifery"]
["2277","Advanced Nurse Practitioner, Candidate (Children's)","Nursing & Midwifery"]
["2278","Advanced Nurse Practitioner, Candidate (Intellectual Disability)","Nursing & Midwifery"]
["2280","Enhanced Midwife","Nursing & Midwifery"]
["2281","Enhanced Nurse (Children's)","Nursing & Midwifery"]
["2282","Enhanced Nurse (Community/Primary Care)","Nursing & Midwifery"]
["2283","Enhanced Nurse (General)","Nursing & Midwifery"]
["2284","Enhanced Nurse (Intellectual Disability)","Nursing & Midwifery"]
["2285","Enhanced Nurse (Mental Health)","Nursing & Midwifery"]
["2286","Enhanced Midwife, Senior","Nursing & Midwifery"]
["2287","Enhanced Nurse, Senior (Children's)","Nursing & Midwifery"]
["2288","Enhanced Nurse, Senior (Community/Primary Care)","Nursing & Midwifery"]
["2289","Enhanced Nurse, Senior (General)","Nursing & Midwifery"]
["2290","Enhanced Nurse, Senior (Intellectual Disability)","Nursing & Midwifery"]
["2291","Director of the Nursing & Midwifery P&D Unit","Nursing & Midwifery"]
["2292","Area Director Nurse & Midwifery Planning & Development","Nursing & Midwifery"]
["2293","Enhanced Nurse, Senior (Mental Health)","Nursing & Midwifery"]
["2301","Staff Nurse, Community Mental Health","Nursing & Midwifery"]
["2313","Clinical Midwife Specialist","Nursing & Midwifery"]
["233X","Clinical Nurse Manager 3","Nursing & Midwifery"]
["2356","Clinical Nurse Manager 3 - Theatre","Nursing & Midwifery"]
["2364","Director of the Nursing & Midwifery P&D Unit, Asst","Nursing & Midwifery"]
["2372","Clinical Nurse Manager 2 - Night","Nursing & Midwifery"]
["2380","Staff Nurse (Nursing Bank)","Nursing & Midwifery"]
["2381","Staff Nurse, Senior (Nursing Bank)","Nursing & Midwifery"]
["2382","Staff Nurse, Mental Health (Nursing Bank)","Nursing & Midwifery"]
["2383","Staff Nurse Senior, Mental Health (Nursing Bank)","Nursing & Midwifery"]
["2384","Staff Nurse, Children's (Nursing Bank)","Nursing & Midwifery"]
["2385","Staff Nurse Senior, Children's (Nursing Bank)","Nursing & Midwifery"]
["238Y","Clinical Nurse Manager 3 (Mental Health)","Nursing & Midwifery"]
["241Y","Nursing/ Midwifery Clinical Placement Co-ordinator","Nursing & Midwifery"]
["2429","Clinical Nurse Manager 2 - Theatre","Nursing & Midwifery"]
["2445","Nursing/ Midwifery Practice Development Co-ordinator","Nursing & Midwifery"]
["2465","Specialist Co-ordinator, Nursing","Nursing & Midwifery"]
["247X","Principal Nurse Tutor","Nursing & Midwifery"]
["2525","Director of Nursing (Area Mental Health)","Nursing & Midwifery"]
["2526","Director of Nursing (Mental Health)","Nursing & Midwifery"]
["2527","Clinical Nurse Manager 1 (Mental Health)","Nursing & Midwifery"]
["2535","Advanced Midwife Practitioner","Nursing & Midwifery"]
["2536","Advanced Midwife Practitioner, Candidate","Nursing & Midwifery"]
["2542","Director of Nursing (Mental Health), Assistant","Nursing & Midwifery"]
["2551","Public Health Nurse, Senior (Immunisation)","Nursing & Midwifery"]
["2580","Nurse Tutor","Nursing & Midwifery"]
["2585","Principal Nurse Tutor (Mental Health)","Nursing & Midwifery"]
["2586","Nurse Tutor (Psychiatric)","Nursing & Midwifery"]
["2606","Staff Nurse, Dual Qualified (Mental Health)","Nursing & Midwifery"]
["2617","Staff Nurse, Dual Qualified (General)","Nursing & Midwifery"]
["2618","Staff Nurse, Dual Qualified (Children's)","Nursing & Midwifery"]
["2625","Clinical Nurse Specialist (Mental Health)","Nursing & Midwifery"]
["2626","Clinical Nurse Specialist (Children's)","Nursing & Midwifery"]
["2627","Clinical Nurse Specialist (Intellectual Disability)","Nursing & Midwifery"]
["2628","Clinical Nurse Specialist (Community/Primary Care)","Nursing & Midwifery"]
["2632","Clinical Nurse Specialist (General)","Nursing & Midwifery"]
["2633","Staff Midwife (awaiting-registration)","Nursing & Midwifery"]
["2634","Staff Nurse, Children's (awaiting-registration)","Nursing & Midwifery"]
["2635","Staff Nurse, General (awaiting-registration)","Nursing & Midwifery"]
["2636","Staff Nurse, Intellectual Disability (awaiting-registration)","Nursing & Midwifery"]
["2637","Staff Nurse, Psychiatric (awaiting-registration)","Nursing & Midwifery"]
["2643","Director, Nursing/ Midwifery Education Centre","Nursing & Midwifery"]
["2658","Clinical Nurse Manager 2 (Mental Health)","Nursing & Midwifery"]
["266X","Practice Nurse Facilitator","Nursing & Midwifery"]
["2674","Staff Nurse, Mental Health","Nursing & Midwifery"]
["268Y","Professional Development Nursing Officer","Nursing & Midwifery"]
["2695","Clinical Nurse Specialist Candidate (Children’s)","Nursing & Midwifery"]
["2696","Clinical Nurse Specialist Candidate (Community/Primary Care) ","Nursing & Midwifery"]
["2697","Clinical Nurse Specialist Candidate (General)","Nursing & Midwifery"]
["2698","Clinical Nurse Specialist Candidate (Intellectual Disability)","Nursing & Midwifery"]
["2699","Clinical Nurse Specialist Candidate (Mental Health)","Nursing & Midwifery"]
["2700","Clinical Midwife Specialist Candidate","Nursing & Midwifery"]
["2704","Psychiatric Nurse, Community","Nursing & Midwifery"]
["2712","Clinical Nurse Instructor/Teacher","Nursing & Midwifery"]
["272Y","Staff Nurse, Dual Qualified (Intellectual Disability)","Nursing & Midwifery"]
["2739","Area Coordinator (Nursing)","Nursing & Midwifery"]
["2801","Director of Public Health Nursing","Nursing & Midwifery"]
["281X","Director of Public Health Nursing, Assistant","Nursing & Midwifery"]
["2828","Public Health Nurse","Nursing & Midwifery"]
["2836","Student Public Health Nursing (post registration)","Nursing & Midwifery"]
["2860","Staff Nurse (Adaptation Placement), Children's","Nursing & Midwifery"]
["2861","Staff Nurse (Adaptation Placement), General","Nursing & Midwifery"]
["2862","Staff Nurse (Adaptation Placement), Mental Health","Nursing & Midwifery"]
["2903","Director of Nursing 1","Nursing & Midwifery"]
["2904","Director of Nursing 2","Nursing & Midwifery"]
["2905","Director of Nursing 2A","Nursing & Midwifery"]
["2906","Director of Nursing 3","Nursing & Midwifery"]
["2907","Director of Nursing 4","Nursing & Midwifery"]
["2908","Director of Nursing 5","Nursing & Midwifery"]
["2910","Director of Nursing 1, Assistant","Nursing & Midwifery"]
["2911","Director of Nursing 2, Assistant","Nursing & Midwifery"]
["2912","Director of Nursing 3, Assistant","Nursing & Midwifery"]
["2913","Director of Nursing 4, Assistant","Nursing & Midwifery"]
["2914","Director of Nursing & Midwifery","Nursing & Midwifery"]
["2915","Director of Nursing & Midwifery, Hospital Group","Nursing & Midwifery"]
["2916","Director of Midwifery 1","Nursing & Midwifery"]
["2917","Director of Midwifery 2","Nursing & Midwifery"]
["2918","Director of Midwifery 3","Nursing & Midwifery"]
["2919","Director of Midwifery 1, Assistant","Nursing & Midwifery"]
["2920","Director of Midwifery 2, Assistant","Nursing & Midwifery"]
["2921","Director of Midwifery 3, Assistant","Nursing & Midwifery"]
["2930","Student Psychiatric Nursing Intern (pre-registration)","Nursing & Midwifery"]
["2931","Student General Nursing Intern (pre-registration)","Nursing & Midwifery"]
["2932","Student Intellectual Disability Nursing Intern (pre-registration","Nursing & Midwifery"]
["2933","Student Children's & General Nursing Intern (pre-registration)","Nursing & Midwifery"]
["2934","Student Psychiatric Nursing (post-registration)","Nursing & Midwifery"]
["2939","Student General Nursing Intern  (COVID-19 HCA)","Nursing & Midwifery"]
["2940","Student Children's & General Nursing Intern (COVID-19 HCA)","Nursing & Midwifery"]
["2941","Student Midwifery Intern (COVID-19 HCA)","Nursing & Midwifery"]
["2942","Student Psychiatric Nursing Intern (COVID-19 HCA)","Nursing & Midwifery"]
["2943","Student Intellectual Disability Nursing Intern (COVID-19 HCA)","Nursing & Midwifery"]
["2992","Nursing Unclassified","Nursing & Midwifery"]
["3001","Cardiac Physiologist, Chief I","Health & Social Care Professionals"]
["3002","Cardiac Physiologist, Chief II","Health & Social Care Professionals"]
["3003","Cardiac Physiologist, Senior","Health & Social Care Professionals"]
["3004","E.C.G. Technician, Chief I","Health & Social Care Professionals"]
["3006","Maxillo Facial Technician","Health & Social Care Professionals"]
["3007","Perfusionist","Health & Social Care Professionals"]
["3008","Respiratory Physiologist, Chief I","Health & Social Care Professionals"]
["3009","Respiratory Physiologist, Chief II","Health & Social Care Professionals"]
["3010","Respiratory Physiologist, Senior","Health & Social Care Professionals"]
["3013","Pharmacist, Student","Health & Social Care Professionals"]
["3014","Phlebotomist, Trainee","Health & Social Care Professionals"]
["3015","Play Therapist","Health & Social Care Professionals"]
["3016","Respiratory Physiologist","Health & Social Care Professionals"]
["3017","Social Worker","Health & Social Care Professionals"]
["3019","Social Worker, Senior Medical","Health & Social Care Professionals"]
["3020","Mould Room Technician (Do not use - Obsolete)","Health & Social Care Professionals"]
["3021","Pharmaceutical Technician, Senior","Health & Social Care Professionals"]
["3022","Dental Hygienist","Health & Social Care Professionals"]
["3024","Medical Scientist, Student","Health & Social Care Professionals"]
["3025","Speech & Language Therapist, Clinical Specialist","Health & Social Care Professionals"]
["3027","Director of Counselling (National Services)","Health & Social Care Professionals"]
["3028","Counsellor / Therapist (National Services)","Health & Social Care Professionals"]
["3029","Social Care Worker","Health & Social Care Professionals"]
["3030","Social Care Leader","Health & Social Care Professionals"]
["3031","Social Care Worker, Trainee (Do not use - Obsolete)","Health & Social Care Professionals"]
["3035","Dosimetrist, Basic","Health & Social Care Professionals"]
["3036","Dosimetrist, Senior","Health & Social Care Professionals"]
["3037","Social Worker, Psychiatric Senior","Health & Social Care Professionals"]
["3038","Environmental Health Officer, Trainee","Health & Social Care Professionals"]
["3039","Laboratory Technician (RPAL)","Health & Social Care Professionals"]
["3040","Laboratory Technician, Senior (RPAL)","Health & Social Care Professionals"]
["3043","Physicist, Graduate Trainee","Health & Social Care Professionals"]
["3044","Maxillo Facial Technician, Chief","Health & Social Care Professionals"]
["3048","Molecular Microbiologist","Health & Social Care Professionals"]
["3049","Director of Pharmaceutical Services (Do not use - Obsolete)","Health & Social Care Professionals"]
["3050","High Support Unit Manager (Do not use - Obsolete)","Health & Social Care Professionals"]
["3052","Counsellor Therapist (Adult Services)","Health & Social Care Professionals"]
["3054","Vascular Physiologist, Chief II","Health & Social Care Professionals"]
["3055","High Support Unit Manager, Deputy (Do not use - Obsolete)","Health & Social Care Professionals"]
["3056","Psychotherapist","Health & Social Care Professionals"]
["3057","Perfusionist, Senior","Health & Social Care Professionals"]
["3058","Perfusionist, Student","Health & Social Care Professionals"]
["3059","Perfusionist, in charge","Health & Social Care Professionals"]
["305T","Endocrinology Technician (Do not use - Obsolete)","Health & Social Care Professionals"]
["3060","Children's First Information Officer (Do not use - Obsolete)","Health & Social Care Professionals"]
["3061","Gastrointestinal (GI) Physiologist","Health & Social Care Professionals"]
["3062","Gastrointestinal (GI) Physiologist, Senior","Health & Social Care Professionals"]
["3064","Gastrointestinal (GI) Physiologist, Chief II","Health & Social Care Professionals"]
["3067","Regional Drugs Taskforce Coordinator","Health & Social Care Professionals"]
["3068","Vaccinator - COVID 19 Vaccination Programme","Health & Social Care Professionals"]
["3069","Respiratory Technician, Student","Health & Social Care Professionals"]
["3070","Clinical Coordinator","Health & Social Care Professionals"]
["3072","Psyschosis Key Worker, Early Intervention","Health & Social Care Professionals"]
["3077","Vascular Physiologist","Health & Social Care Professionals"]
["3078","National Lead Employee Assistance Programme","Health & Social Care Professionals"]
["3093","Radiographer","Health & Social Care Professionals"]
["309X","Radiography Service Manager, I","Health & Social Care Professionals"]
["3102","Director of Services, Mayo Community Living","Health & Social Care Professionals"]
["3103","Counsellor/ Therapist, Senior (National Services)","Health & Social Care Professionals"]
["3104","interRAI Care Needs Facilitator","Health & Social Care Professionals"]
["3107","Radiographer, Senior","Health & Social Care Professionals"]
["3108","Radiography Service Manager III","Health & Social Care Professionals"]
["310X","Radiography Service Manager, II","Health & Social Care Professionals"]
["3110","Epidemiologist","Health & Social Care Professionals"]
["3111","Epidemiologist, Senior","Health & Social Care Professionals"]
["3112","Epidemiologist, Principal","Health & Social Care Professionals"]
["3113","Surveillance Officer, Public Health","Health & Social Care Professionals"]
["3122","Dental Hygienist, Senior","Health & Social Care Professionals"]
["3123","Radiography Tutor (Do not use - Obsolete)","Health & Social Care Professionals"]
["3131","Radiographer, Clinical Specialist","Health & Social Care Professionals"]
["3140","HSCP National Lead","Health & Social Care Professionals"]
["3141","HSCP Regional Integration Development Lead","Health & Social Care Professionals"]
["3142","HSCP Assistant National Lead – Clinical Advisory","Health & Social Care Professionals"]
["3143","HSCP Assistant National Lead – Education","Health & Social Care Professionals"]
["3144","HSCP Assistant National Lead - Workforce Development","Health & Social Care Professionals"]
["3145","HSCP Assistant National Lead – Workforce Planning","Health & Social Care Professionals"]
["3146","National HSCP Strategic Projects Manager","Health & Social Care Professionals"]
["3147","HSCP Regional Practice Education Coordinator","Health & Social Care Professionals"]
["3148","HSCP Regional Practice Development Coordinator","Health & Social Care Professionals"]
["3149","HSCP Project Officer ","Health & Social Care Professionals"]
["314X","Physiotherapist","Health & Social Care Professionals"]
["3158","Physiotherapist, Senior","Health & Social Care Professionals"]
["3159","Physiotherapy, Placement Facilitator (Do not use - Obsolete)","Health & Social Care Professionals"]
["3160","Physiotherapy, Practice Tutor","Health & Social Care Professionals"]
["3161","Clinical Engineering Technician","Health & Social Care Professionals"]
["3162","Clinical Engineering Technician, Senior","Health & Social Care Professionals"]
["3163","Clinical Engineering Technician, Principal","Health & Social Care Professionals"]
["3164","Clinical Engineering Technician, Chief","Health & Social Care Professionals"]
["3172","Environmental Health Officer, Regional Chief","Health & Social Care Professionals"]
["3173","Environmental Health Officer, Senior","Health & Social Care Professionals"]
["3181","Environmental Health Officer, Principal","Health & Social Care Professionals"]
["3182","Physiotherapist-in-charge (Grade III)","Health & Social Care Professionals"]
["3188","Specialist Paramedic","Health & Social Care Professionals"]
["3190","Paramedic, Student","Health & Social Care Professionals"]
["3192","Hospital Ambulance Liason Supervisor","Health & Social Care Professionals"]
["3193","Paramedicine Practice Development Lead","Health & Social Care Professionals"]
["3194","Emergency Medical Technician, Registered","Health & Social Care Professionals"]
["3195","Paramedic, Registered","Health & Social Care Professionals"]
["319X","Environmental Health Officer","Health & Social Care Professionals"]
["3211","Clinical Photographer","Health & Social Care Professionals"]
["3212","Pharmaceutical Technician","Health & Social Care Professionals"]
["321T","Clinical Photographer, Senior","Health & Social Care Professionals"]
["3221","Lead Lymphoedema Specialist","Health & Social Care Professionals"]
["3222","Lymphoedema Specialist","Health & Social Care Professionals"]
["322Y","Vascular Physiologist, Senior","Health & Social Care Professionals"]
["3239","Pharmacist, Senior","Health & Social Care Professionals"]
["3240","Pharmacist Executive Manager, Deputy","Health & Social Care Professionals"]
["3244","Pharmacy Executive Manager 1","Health & Social Care Professionals"]
["3245","Pharmacy Executive Manager 2","Health & Social Care Professionals"]
["3246","Pharmacy Executive Manager 3","Health & Social Care Professionals"]
["3247","Pharmacist","Health & Social Care Professionals"]
["3250","Pharmacist, Advanced Specialist       ","Health & Social Care Professionals"]
["3255","Vascular Physiologist, Chief I","Health & Social Care Professionals"]
["3263","Pharmacist, Chief I","Health & Social Care Professionals"]
["3271","Pharmacist, Chief II","Health & Social Care Professionals"]
["3280","Speech and Language Therapy Adaptation","Health & Social Care Professionals"]
["3281","Dietetics Adaptation","Health & Social Care Professionals"]
["3282","Medical Science Adaptation","Health & Social Care Professionals"]
["3283","Occupational Therapy Adaptation","Health & Social Care Professionals"]
["3284","Physiotherapy Adaptation","Health & Social Care Professionals"]
["3285","Podiatry Adaptation","Health & Social Care Professionals"]
["3286","Radiation Therapy Adaptation","Health & Social Care Professionals"]
["3287","Radiography Adaptation","Health & Social Care Professionals"]
["3288","Social Work Adaptation","Health & Social Care Professionals"]
["3298","Occupational Therapist","Health & Social Care Professionals"]
["3301","Occupational Therapist, Senior","Health & Social Care Professionals"]
["3302","Occupational Therapist-in-charge III","Health & Social Care Professionals"]
["3304","Occupational Therapy Placement Facilitator","Health & Social Care Professionals"]
["3305","Occupational Therapy, Practice Tutor","Health & Social Care Professionals"]
["331X","Occupational Therapist Manager","Health & Social Care Professionals"]
["3328","Dietitian Manager","Health & Social Care Professionals"]
["3346","Chiropodist/ Podiatrist, Senior","Health & Social Care Professionals"]
["3352","Chiropodist/ Podiatrist","Health & Social Care Professionals"]
["3355","Podiatrist Manager","Health & Social Care Professionals"]
["3356","Podiatrist Manager in Charge III","Health & Social Care Professionals"]
["3361","Speech & Language Therapist Manager-in-charge III","Health & Social Care Professionals"]
["336Y","Speech & Language Therapist","Health & Social Care Professionals"]
["3371","Social Care Manager 1","Health & Social Care Professionals"]
["3372","Social Care Manager 2","Health & Social Care Professionals"]
["3373","Social Care Manager 3","Health & Social Care Professionals"]
["3379","Speech & Language Therapist, Senior","Health & Social Care Professionals"]
["3380","Speech & Language Therapy, Placement Facilitator (Do not use - Obsolete)","Health & Social Care Professionals"]
["3381","Speech & Language Therapy, Practice Tutor","Health & Social Care Professionals"]
["3389","Dietitian","Health & Social Care Professionals"]
["3391","Dietitian Manager-in-charge III","Health & Social Care Professionals"]
["3395","Dietitian, Senior","Health & Social Care Professionals"]
["3409","Orthoptist","Health & Social Care Professionals"]
["3410","National Clinical Laboratory Director","Health & Social Care Professionals"]
["3417","Orthoptist, Senior","Health & Social Care Professionals"]
["3420","Optometrist, Clinical","Health & Social Care Professionals"]
["3425","Phlebotomist","Health & Social Care Professionals"]
["3433","Phlebotomist, Senior","Health & Social Care Professionals"]
["3441","Audiologist","Health & Social Care Professionals"]
["3442","Audiological Scientist","Health & Social Care Professionals"]
["3443","Audiological Scientist, Senior","Health & Social Care Professionals"]
["3444","Audiologist, Student","Health & Social Care Professionals"]
["3446","Audiology, National Lead","Health & Social Care Professionals"]
["3447","Audiologist, Clinical Specialist","Health & Social Care Professionals"]
["3448","Audiology, Assistant National Lead","Health & Social Care Professionals"]
["3451","Paramedicine Tutor","Health & Social Care Professionals"]
["3452","Paramedicine Tutor, Principal","Health & Social Care Professionals"]
["345X","Audiologist, Chief","Health & Social Care Professionals"]
["3468","Speech & Language Therapist Manager","Health & Social Care Professionals"]
["3492","Physiotherapist Manager","Health & Social Care Professionals"]
["350Y","Social Worker, Principal","Health & Social Care Professionals"]
["3522","Social Worker (Non-professionally qualified)","Health & Social Care Professionals"]
["3557","Social Worker, Medical","Health & Social Care Professionals"]
["3581","E.C.G. Technician, Senior","Health & Social Care Professionals"]
["359T","E.C.G. Technician","Health & Social Care Professionals"]
["3603","E.E.G./ E.C.G. Technician, Student","Health & Social Care Professionals"]
["3604","Neuro-Physiologist","Health & Social Care Professionals"]
["3605","Neuro-Physiologist, Chief I","Health & Social Care Professionals"]
["3606","Neuro-Physiologist, Chief II","Health & Social Care Professionals"]
["3607","Neuro-Physiologist, Senior","Health & Social Care Professionals"]
["3614","Social Work Practitioner, Senior","Health & Social Care Professionals"]
["362X","Pharmaceutical Technician, Student","Health & Social Care Professionals"]
["3654","Chiropodist, Clinical Specialist","Health & Social Care Professionals"]
["3662","Psychology, Director of","Health & Social Care Professionals"]
["3670","Psychology Trainee, Counselling","Health & Social Care Professionals"]
["3671","Psychology Trainee, Educational","Health & Social Care Professionals"]
["367Y","Psychologist, Senior Clinical","Health & Social Care Professionals"]
["3689","Psychologist, Clinical","Health & Social Care Professionals"]
["3690","Psychologist, Educational","Health & Social Care Professionals"]
["3691","Psychologist, Counselling","Health & Social Care Professionals"]
["3692","Psychologist, Senior Counselling","Health & Social Care Professionals"]
["3693","Psychologist, Senior Educational","Health & Social Care Professionals"]
["3697","Psychologist, Trainee Clinical","Health & Social Care Professionals"]
["3705","Play Therapist, Senior","Health & Social Care Professionals"]
["3706","Play Specialist","Health & Social Care Professionals"]
["3707","Physiotherapist, Clinical Specialist","Health & Social Care Professionals"]
["3708","Play Specialist, Senior","Health & Social Care Professionals"]
["3715","Dietitian, Clinical Specialist","Health & Social Care Professionals"]
["3727","Psychologist, Principal Clinical","Health & Social Care Professionals"]
["3742","Analytical Chemist (without Branch E Cert)","Health & Social Care Professionals"]
["3744","Analytical Chemist, (with Branch E Cert)","Health & Social Care Professionals"]
["3751","Biochemist","Health & Social Care Professionals"]
["3759","Regional Public Analyst","Health & Social Care Professionals"]
["3767","Regional Public Analyst, Deputy","Health & Social Care Professionals"]
["376X","Biochemist, Senior","Health & Social Care Professionals"]
["3778","Biochemist, Principal","Health & Social Care Professionals"]
["3794","Physicist","Health & Social Care Professionals"]
["3808","Physicist, Senior","Health & Social Care Professionals"]
["3816","Physicist, Principal","Health & Social Care Professionals"]
["3824","Occupational Therapist, Clinical Specialist","Health & Social Care Professionals"]
["3832","Physicist, Chief","Health & Social Care Professionals"]
["384Y","Audiologist, Senior","Health & Social Care Professionals"]
["3858","Rehabilitation Officer","Health & Social Care Professionals"]
["3859","Physics Technician","Health & Social Care Professionals"]
["3867","Cardiac Physiologist","Health & Social Care Professionals"]
["3875","Medical Scientist","Health & Social Care Professionals"]
["3876","Medical Scientist, Chief","Health & Social Care Professionals"]
["3877","Medical Scientist, Senior","Health & Social Care Professionals"]
["3878","Medical Scientist, Specialist","Health & Social Care Professionals"]
["3879","Medical Scientist, Undergraduate","Health & Social Care Professionals"]
["3880","Medical Scientist, Trainee","Health & Social Care Professionals"]
["3902","Social Worker, Team Leader","Health & Social Care Professionals"]
["3918","Counsellor, Senior","Health & Social Care Professionals"]
["3919","Counsellor, Children's","Health & Social Care Professionals"]
["391T","Counsellor","Health & Social Care Professionals"]
["3922","Child Care Manager","Health & Social Care Professionals"]
["392X","Social Care Manager","Health & Social Care Professionals"]
["392Y","Social Care Manager, Deputy (Do not use - Obsolete)","Health & Social Care Professionals"]
["393X","Laboratory Manager","Health & Social Care Professionals"]
["3942","NAS Emerging Threat Unit, Team Leader","Health & Social Care Professionals"]
["3948","Social Worker, Psychiatric","Health & Social Care Professionals"]
["3950","Radiation Therapist","Health & Social Care Professionals"]
["3951","Radiation Therapist, Senior","Health & Social Care Professionals"]
["3956","Teacher","Health & Social Care Professionals"]
["3957","Instructor","Health & Social Care Professionals"]
["3958","Therapist","Health & Social Care Professionals"]
["3959","Family Therapist","Health & Social Care Professionals"]
["3964","Radiation Therapist, Clinical Specialist","Health & Social Care Professionals"]
["3972","Radiation Therapy Service Manager I","Health & Social Care Professionals"]
["3974","Radiation Therapy Service Manager III","Health & Social Care Professionals"]
["398Y","Radiation Therapy Service Manager II","Health & Social Care Professionals"]
["3999","Health & Social Care Professionals Unclassified","Health & Social Care Professionals"]
["4001","Catering Officer, Grade II","General Support"]
["4002","Catering Officer, Grade III","General Support"]
["4006","Dental Technician","General Support"]
["4007","Dental Craftsman/Technician, Chief (GSS)","General Support"]
["4008","Dental Technician, Senior","General Support"]
["4011","Gardener/ Groundsman, Head","General Support"]
["4012","Chef, Head","General Support"]
["4013","Hostel Supervisor","General Support"]
["4014","Catering Officer Grade I","General Support"]
["4016","Pharmacy Assistant","General Support"]
["4022","Catering Supervisor","General Support"]
["402T","Catering Supervisor, Assistant.","General Support"]
["4065","Cook, Trainee","General Support"]
["4068","Gardener/ Groundsman","General Support"]
["4073","Diningroom/Cafeteria Supervisor","General Support"]
["4077","Medical Laboratory Aide","General Support"]
["4081","Housekeeper","General Support"]
["4082","Household Services Manager","General Support"]
["4083","Household Services Manager, Deputy","General Support"]
["4092","Caretaker","General Support"]
["409X","Housekeeper, Assistant","General Support"]
["4103","Domestic Supervisor","General Support"]
["4105","Catering Manager","General Support"]
["4106","Security Guard","General Support"]
["4110","Domestic","General Support"]
["4111","Catering/Cleaner/Assistant","General Support"]
["4113","Cleaner","General Support"]
["4114","Household Attendant/Cleaner/Domestic, Intern (Do not use - Obsolete)","General Support"]
["4120","Head of Catering","General Support"]
["4123","Catering Assistant","General Support"]
["413Y","Driver","General Support"]
["4146","Linen Room/Laundry Supervisor","General Support"]
["4197","Porter","General Support"]
["4198","Porter, Intern","General Support"]
["4201","Storeperson A","General Support"]
["4202","Storeperson B","General Support"]
["4203","Storeperson C","General Support"]
["420Y","Porter, Head","General Support"]
["4211","Chef, Executive","General Support"]
["422X","Dark Room Technician/Porter","General Support"]
["4238","Storeperson","General Support"]
["424X","Boilerman","General Support"]
["4262","Labourer","General Support"]
["427Y","Chef, Senior","General Support"]
["4297","Stores Porter/Assistant/Attendant","General Support"]
["4327","Work Placement (Support Services)","General Support"]
["4332","Domestic Supervisor, Assistant","General Support"]
["4343","Chef, Journeyman (Do not use - Obsolete)","General Support"]
["4351","Linen Room/Laundry Supervisor, Assistant (Do not use - Obsolete)","General Support"]
["4372","Transport Officer","General Support"]
["4413","Seamstress/ Tailor","General Support"]
["448Y","Porter, Theatre","General Support"]
["4495","Support Services Unclassified","General Support"]
["451Y","Chef I","General Support"]
["4521","Clerk of Works","General Support"]
["4529","Chef II","General Support"]
["4645","Pathology Technician","General Support"]
["4653","Pathology Technician, Senior","General Support"]
["4734","Driver, Minibus","General Support"]
["4900","Laundry Worker","General Support"]
["4901","Mortuary Attendant","General Support"]
["4902","Plaster Technician","General Support"]
["4905","Craftsman's Mate","General Support"]
["4908","Driver/ Porter","General Support"]
["496T","Ward Clerk","General Support"]
["5000","Laboratory Porter","General Support"]
["5001","Pharmacy Porter","General Support"]
["5002","Engineer/ Engineering Officer","General Support"]
["5003","Pharmacy Aide-Attendant","General Support"]
["5061","Maintenance Foreman","General Support"]
["506T","Maintenance Foreman, Assistant","General Support"]
["5070","Maintenance Manager","General Support"]
["5071","Maintenance Officer","General Support"]
["507T","Maintenance Helper","General Support"]
["5088","Chargehand","General Support"]
["5096","Electrician","General Support"]
["5118","Painter","General Support"]
["5126","Mechanic","General Support"]
["5134","Plumber","General Support"]
["515Y","Plasterer","General Support"]
["5312","Draughtsman/Technician II","General Support"]
["532Y","Draughtsman/Technician I","General Support"]
["5363","Theatre Technician/Porter","General Support"]
["5371","Apprentice Craftworker","General Support"]
["546T","Technical Services Officer, Chief Asst.","General Support"]
["546Y","Technical Services Officer","General Support"]
["5487","General Operative","General Support"]
["5497","Fire Prevention Officer","General Support"]
["555T","Technical Services Officer, Senior Asst.","General Support"]
["555X","Technical Services Officer, Assistant","General Support"]
["5606","Maintenance Craftsman/Technician","General Support"]
["5777","C.S.S.D. Supervisor","General Support"]
["5785","C.S.S.D. Operative","General Support"]
["5931","Laboratory Attendant","General Support"]
["5991","Maintenance/Technical Unclassified","General Support"]
["6001","Assessment Officer (Disability Act)","Patient & Client Care"]
["6002","Community Swabber (COVID-19)*","Patient & Client Care"]
["6003","Testing Centre Co-Ordinator (COVID 19)*","Patient & Client Care"]
["6004","Testing Centre Deputy Co-Ordinator (COVID 19)*","Patient & Client Care"]
["6006","Services Coordinator 1 (Disability Services)","Patient & Client Care"]
["6007","Services Coordinator 2 (Disability Services)","Patient & Client Care"]
["6008","Services Coordinator 3 (Disability Services)","Patient & Client Care"]
["6009","Services Coordinator 4 (Disability Services)","Patient & Client Care"]
["6010","Children's Disability Network Manager","Patient & Client Care"]
["6011","Community Healthcare Network Manager","Patient & Client Care"]
["6012","Health Care Assistant (Band 1)/(specific sites only)","Patient & Client Care"]
["6013","Theatre Operative","Patient & Client Care"]
["6014","Team Leader, Support Services","Patient & Client Care"]
["6015","Attendant, Multi-Task","Patient & Client Care"]
["6016","Attendant. Multi-Task Intern (Do not use - Obsolete)","Patient & Client Care"]
["6017","Endoscopy Operative (Band 1)","Patient & Client Care"]
["6018","Endoscopy Operative (Band 2)","Patient & Client Care"]
["6024","Workshop Manager","Patient & Client Care"]
["6026","Vocational Officer","Patient & Client Care"]
["6027","Community Welfare Officer, Supt.","Patient & Client Care"]
["6030","Community Welfare Officer","Patient & Client Care"]
["6038","Peer Support Worker","Patient & Client Care"]
["6039","Peer Support Worker, Senior","Patient & Client Care"]
["6049","Patient Services Officer","Patient & Client Care"]
["6058","Registrar Births/Deaths/Marriages","Patient & Client Care"]
["6066","Health Education Officer","Patient & Client Care"]
["6067","Health Promotion Officer","Patient & Client Care"]
["6068","Health Promotion Officer, Senior","Patient & Client Care"]
["6075","Health Care Assistant","Patient & Client Care"]
["6076","Health Care Assistant, intern (Do not use - Obsolete)","Patient & Client Care"]
["6077","Health Care Assistant (Student Nurse/Midwife COVID-19)","Patient & Client Care"]
["6083","General Assistant","Patient & Client Care"]
["6091","General Assistant, Senior","Patient & Client Care"]
["6100","Head of Bed Management (Category A)","Patient & Client Care"]
["6101","Head of Bed Management (Category B)","Patient & Client Care"]
["6102","Head of Bed Management (Category C)","Patient & Client Care"]
["6104","Therapeutic Security Supervisor NFMHS","Patient & Client Care"]
["6116","Cardiac Aide","Patient & Client Care"]
["6120","Clinical Paramedical Supervisor","Patient & Client Care"]
["6122","Ambulance Officer","Patient & Client Care"]
["6123","Ambulance Officer, Asst. Chief","Patient & Client Care"]
["6124","Driver (Doctor-on-call)","Patient & Client Care"]
["6125","Ambulance Officer, Chief","Patient & Client Care"]
["6126","National Emergency Operations Centre (NEOC) Duty Supervisor ","Patient & Client Care"]
["6127","National Emergency Operations Centre (NEOC) Duty Manager","Patient & Client Care"]
["6128","Ambulance Service Shift Manager","Patient & Client Care"]
["6129","Ambulance Service Tactical Manager, Senior","Patient & Client Care"]
["6130","Ambulance Service Tactical Manager","Patient & Client Care"]
["6131","Ambulance Service District Operations Manager","Patient & Client Care"]
["6132","Driver (Patients/Clients Public Roads)","Patient & Client Care"]
["6133","Intermediate Care Operative  (Do not use - Obsolete)","Patient & Client Care"]
["6200","Health Promotion & Improvement Officer","Patient & Client Care"]
["6300","Health Promotion & Improvement Officer, Senior","Patient & Client Care"]
["6400","Nurse's Aide","Patient & Client Care"]
["6402","Workshop Supervisor/Instructor, Senior","Patient & Client Care"]
["6403","Pastoral Care Worker","Patient & Client Care"]
["6404","Chaplain","Patient & Client Care"]
["6405","Chaplaincy Services, coordinator","Patient & Client Care"]
["6415","Attendant/ Aide","Patient & Client Care"]
["6416","Family Support Worker","Patient & Client Care"]
["6417","Nursing Auxiliary/Orderly","Patient & Client Care"]
["6425","Workshop Supervisor/ Instructor","Patient & Client Care"]
["6430","Hairdresser/ Barber","Patient & Client Care"]
["6434","Nursery Nurse","Patient & Client Care"]
["6436","Dental Surgery Assistant (unqualified)","Patient & Client Care"]
["6437","Dental Nurse","Patient & Client Care"]
["6439","Welfare Home, Supervisor","Patient & Client Care"]
["6440","Dental Nurse, Senior","Patient & Client Care"]
["6450","Emergency Call Taker","Patient & Client Care"]
["6453","Emergency Medical Technician, Student (Do not use - Obsolete)","Patient & Client Care"]
["6455","Emergency Medical Controller","Patient & Client Care"]
["6456","Emergency Medical Dispatcher","Patient & Client Care"]
["6457","Emergency Medical Control Supervisor","Patient & Client Care"]
["6463","Emergency Medical Technician (Do not use - Obsolete)","Patient & Client Care"]
["6464","Emergency Medical Technician, Leading","Patient & Client Care"]
["6466","Supervisor Welfare Home, Assistant","Patient & Client Care"]
["6479","Care Assistant (Disability), Intern (Do not use - Obsolete)","Patient & Client Care"]
["6482","Care Assistant (Disability Services)","Patient & Client Care"]
["6484","Home Support Resource Officer","Patient & Client Care"]
["6491","Social Parent","Patient & Client Care"]
["6492","Pool Attendant/ Supervisor","Patient & Client Care"]
["6493","Prosthetist, Senior","Patient & Client Care"]
["6494","Health Care Assistant (Home Support)","Patient & Client Care"]
["6499","Miscellaneous Childcare, Support Services","Patient & Client Care"]
["6500","Local Area Co-ordinator (Addiction Services)","Patient & Client Care"]
["6501","Education Officer","Patient & Client Care"]
["6502","Outreach Worker","Patient & Client Care"]
["6503","Physiotherapy Assistant","Patient & Client Care"]
["6504","Speech & Language Therapy Assistant","Patient & Client Care"]
["6505","Occupational Therapy Assistant","Patient & Client Care"]
["6507","Appeals Officer","Patient & Client Care"]
["6508","Appeals Officer, Deputy","Patient & Client Care"]
["6510","Work Placement (OP&CC) (Do not use - Obsolete)","Patient & Client Care"]
["6512","Regional Suicide Prevention Officer (Do not use - Obsolete)","Patient & Client Care"]
["6514","S.E.N. (General)","Patient & Client Care"]
["6515","S.E.N. (Psychiatric)","Patient & Client Care"]
["6516","Home Management Advisor","Patient & Client Care"]
["6517","Home Management Advisor, Senior","Patient & Client Care"]
["6518","Home Help Organiser, Deputy","Patient & Client Care"]
["6519","Team Manager EIS","Patient & Client Care"]
["6520","Occupational Guidance Officer","Patient & Client Care"]
["6521","Psychology Assistant","Patient & Client Care"]
["6525","Radiography Assistant","Patient & Client Care"]
["6526","Audiologist, Assistant","Patient & Client Care"]
["6584","Home Support Resource Manager","Patient & Client Care"]
["6931","Emergency Medical Controller - Team Leader","Patient & Client Care"]
["699X","Other Patient & Client Care Unclassified","Patient & Client Care"]
["799A","Generic - Management & Admin **NOT IN USE **","Management & Administrative"]
["799B","Generic - Medical & Dental **NOT IN USE **","Medical & Dental"]
["799C","Generic - Nursing & Midwifery **NOT IN USE **","Nursing & Midwifery"]
["799D","Generic - Health & Social Care Professionals **NOT IN USE **","Health & Social Care Professionals"]
["799E","Generic - General Support **NOT IN USE **","General Support"]
["799F","Health & Social Care Assistant (Therapy Assistant) ","Patient & Client Care"]